Cogmind - Beta 9.4 @@@ ROGUE MODE // 2020.03.15 @ 19:23:44 Player: Trione Result: Escaped singularity! Performance ------------- Evolutions (9) 4500 Regions Visited (44) 8800 Robots Destroyed (727) 3635 Value Destroyed (32896) 32896 Prototype IDs (154) 3080 Alien Tech Used (15) 3000 Bonus (54871) 54871 TOTAL SCORE: 110782 Bonus ------- High Alert Combat Kills 6599 Follower Combat Kills 1317 Entered Garrisons 1400 Used RIF Installer 3500 Network Hubs Disabled 400 Aligned with FarCom 300 Met Data Miner 300 Met Zhirov 300 Built Enhanced Grunts 300 A7 Reached Mainframe 300 Met R17 at Cetus 500 Read Decrypted Archives 600 Destroyed MAIN.C Guards 500 Met MAIN.C 5000 Hacked MAIN.C 300 Destroyed MAIN.C Shell 5000 Destroyed MAIN.C 10000 Met Architect 300 Destroyed A8 300 Destroyed A6 400 Destroyed Architect 15000 Win 3000 Friendly Fire -745 Cogmind --------- Core Integrity 149/1600 Matter 158/300 Energy 560/630 System Corruption 1% Temperature Cool (20) Movement Hovering (44) Location Near Former Tau Ceti IV Parts ------- > --- POWER (2) -------- Zero-point Reactor Zero-point Reactor > --- PROPULSION (5) --- Combat Linear Gravjet Combat Linear Gravjet Combat Linear Gravjet Combat Linear Gravjet Combat Linear Gravjet > --- UTILITY (16) ----- Large Storage Unit Large Storage Unit Large Storage Unit High-capacity Storage Unit Experimental Terrain Scan Processor Experimental Targeting Computer Experimental Targeting Computer Experimental Targeting Computer Advanced Armor Integrity Analyzer Experimental Weapon Cycler Experimental Phase Shifter Heavy Regenerative Plating Experimental Focal Shield Architect God Chip D > --- WEAPON (3) ------- (None) > --- INVENTORY (32) --- Micro Fission Core Zero-point Reactor Cooled Linear Gravjet Combat Linear Gravjet Combat Linear Gravjet Experimental Coolant Injector Experimental Matter Compressor (0) Experimental Terrain Scanner Advanced Reaction Control System Experimental Core Shielding Experimental Propulsion Shielding Centrium Linked Plating Experimental Powered Armor Heavy Regenerative Plating Beam Splitter EM Dispersion Field AEGIS Remote Shield AEGIS Remote Shield Heavy Tesla Rifle Potential Cannon Omega Cannon Advanced Remote Datajack Core Stripper Nanosword Peak State ------------ > --- POWER ------------ Zero-point Reactor Zero-point Reactor > --- PROPULSION ------- Cooled Linear Gravjet Combat Linear Gravjet Combat Linear Gravjet Combat Linear Gravjet Combat Linear Gravjet > --- UTILITY ---------- Experimental Cooling System Experimental Coolant Injector Large Storage Unit High-capacity Storage Unit Experimental Signal Interpreter Advanced Targeting Computer Experimental Targeting Computer Advanced Armor Integrity Analyzer Particle Accelerator Experimental Weapon Cycler Experimental Utility Shielding Heavy Regenerative Plating Experimental Focal Shield Beam Splitter AEGIS Remote Shield > --- WEAPON ----------- Sigix Quantum Sheargun Omega Cannon > --- INVENTORY -------- Micro Fission Core Combat Linear Gravjet Combat Linear Gravjet Experimental Cooling System Experimental Energy Well Experimental Energy Well Advanced Reaction Control System Experimental Propulsion Shielding EM Dispersion Field Experimental Force Field Sigix Quantum Sheargun Sigix Quantum Sheargun Helical Railgun Hypervelocity Multirail Gamma Bomb Array Advanced Remote Datajack Nanosword [Rating: 228] Favorites ----------- Power Micro Fission Core Engine Ion Engine Power Core Micro Fission Core Reactor Zero-point Reactor Propulsion Combat Linear Gravjet Treads Improved Treads Wheel Armored Wheel Hover Unit Combat Linear Gravjet Flight Unit Improved Flight Unit Utility Large Storage Unit Device Experimental Sensor Array Storage Large Storage Unit Processor Experimental Signal Interpreter Hackware Advanced Hacking Suite Protection Experimental Utility Shielding Artifact Phase Redirector Weapon Nanosword Energy Gun Sigix Quantum Sheargun Energy Cannon Light EM Pulse Cannon Ballistic Gun Hypervelocity Multirail Ballistic Cannon Light Cannon Launcher Grenade Launcher Special Weapon Advanced Remote Datajack Impact Weapon Core Stripper Slashing Weapon Nanosword Piercing Weapon Lance Special Melee Weapon Advanced Datajack Build | -11 -10 -10 -9 -9 -9 -8 -8 -8 -7 -7 -7 -7 -7 -7 -6 -6 -6 -6 -6 -6 -6 -6 -5 -5 -5 -5 -5 -5 -5 -5 -4 -4 -4 -4 -3 -3 -3 -2 -2 -2 -2 -1 -1 -1 ------- Run | Scr Mat Min Mat Min Exi Min Mat Gar Fac Was Fac Gar Fac Gar Fac Was Fac Gar Fac Low Low Dat Pro Fac Was Fac Ext Cet Arc Hub Fac Was Fac Gar Res Qua Gar Res Tes Sec Gar Acc Com Ac0 Slots Evolved 18 | . . . 2 . . . 2 . 2 . . . . . 2 . . . . . . . . 2 . . . . . . 2 . . . 2 . . 2 . . . 2 . . Power . | . . . . . . . . . . . . . . . . . . . . . . . . . . . . . . . . . . . . . . . . . . . . . Propulsion 3 | . . . . . . . . . 1 . . . . . . . . . . . . . . 1 . . . . . . 1 . . . . . . . . . . . . . Utility 14 | . . . 2 . . . 2 . 1 . . . . . 2 . . . . . . . . 1 . . . . . . 1 . . . 2 . . 2 . . . 1 . . Weapon 1 | . . . . . . . . . . . . . . . . . . . . . . . . . . . . . . . . . . . . . . . . . . 1 . . Parts Attached 1530 | 7 11 . 21 11 . 8 50 3 34 5 12 12 18 5 15 3 15 6 21 8 28 20 9 50 8 35 34 28 9 46 67 . 18 51 120 24 46 71 71 127 48 60 206 89 Power 41 | 1 . . 1 1 . . 1 . 3 . . . . . . . 1 . . . 1 . . 3 . . . 2 1 2 2 . . 3 . . . . 4 3 2 . 6 4 Engine 5 | 1 . . 1 1 . . 1 . 1 . . . . . . . . . . . . . . . . . . . . . . . . . . . . . . . . . . . Core 26 | . . . . . . . . . 2 . . . . . . . 1 . . . 1 . . 3 . . . . 1 2 2 . . 3 . . . . 3 2 2 . 3 1 Reactor 10 | . . . . . . . . . . . . . . . . . . . . . . . . . . . . 2 . . . . . . . . . . 1 1 . . 3 3 Propulsion 193 | 2 2 . 7 2 . . 6 . 4 . 2 . 3 . 3 2 1 . 2 2 9 2 4 9 . 10 1 4 5 2 11 . 4 6 23 6 4 10 10 . 4 10 15 6 Treads 14 | . 2 . 4 . . . 5 . 1 . . . . . . . . . . . . . . . . . . 1 . . . . . . . . . . 1 . . . . . Leg . | . . . . . . . . . . . . . . . . . . . . . . . . . . . . . . . . . . . . . . . . . . . . . Wheel 6 | 2 . . 2 2 . . . . . . . . . . . . . . . . . . . . . . . . . . . . . . . . . . . . . . . . Hover 160 | . . . . . . . . . . . . . . . . 2 1 . 2 2 9 2 4 9 . 10 1 3 5 2 11 . 4 6 23 6 4 10 9 . 4 10 15 6 Flight 13 | . . . 1 . . . 1 . 3 . 2 . 3 . 3 . . . . . . . . . . . . . . . . . . . . . . . . . . . . . Utility 704 | 2 5 . 5 2 . 2 8 . 19 1 4 3 12 1 11 1 9 2 7 2 5 13 3 21 2 12 17 10 2 27 22 . 10 19 48 11 20 37 37 57 30 28 132 45 Device 404 | . . . 1 1 . 1 1 . 6 . . 2 8 . 5 1 7 . 3 1 3 3 1 8 2 5 11 6 2 15 14 . 5 13 30 3 4 25 16 40 14 16 96 35 Storage 114 | 2 5 . 3 . . . 2 . 2 . 1 . . . 3 . 1 . 2 1 . 6 . 3 . 5 . 1 . 2 . . 2 3 9 3 8 4 13 5 5 8 13 2 Processor 17 | . . . . . . . 1 . 2 . . . 1 . 1 . . . . . 1 . . 1 . 2 . . . . . . . . . . . . . . . . 7 1 Hackware 27 | . . . . . . . . . 4 1 3 1 2 . 1 . . 1 . . . . . 3 . . . . . 1 2 . 1 . 2 1 2 . 1 . . . . 1 Protection 136 | . . . 1 1 . 1 4 . 5 . . . 1 1 1 . 1 1 2 . 1 4 2 6 . . 6 3 . 9 6 . 2 3 7 3 5 8 7 11 8 4 16 6 Artifact 6 | . . . . . . . . . . . . . . . . . . . . . . . . . . . . . . . . . . . . 1 1 . . 1 3 . . . Weapon 592 | 2 4 . 8 6 . 6 35 3 8 4 6 9 3 4 1 . 4 4 12 4 13 5 2 17 6 13 16 12 1 15 32 . 4 23 49 7 22 24 20 67 12 22 53 34 Energy Gun 52 | 1 . . . . . . 4 . . . . . . . . . . . . . . . . . 1 . . 2 . . . . . . . . . . . 5 4 . 12 23 Energy Cannon 108 | . 2 . 2 3 . . 13 2 1 . 1 . . . . . 1 . 6 . 2 1 1 1 1 . 6 3 . 1 4 . . 5 6 3 5 2 3 13 1 7 11 1 Ballistic Gun 49 | 1 1 . 3 1 . 1 3 . . . . . . . . . . . . . . . . . . . . 2 . 5 . . . . . . 1 2 3 6 1 6 11 2 Ballistic Cannon 15 | . . . . . . 2 2 . 1 . . . . . . . . . . . . . . . . . . . . . . . . . . . . . 1 . 1 . 1 7 Launcher 109 | . 1 . 3 2 . 2 8 1 1 2 2 5 1 3 . . 1 2 . 1 3 1 1 4 . 3 5 2 . 1 8 . 2 8 8 1 10 5 . 5 1 . 6 . Special Weapon 55 | . . . . . . . . . . . . . . . . . . . . . . . . . . 1 1 3 1 1 9 . 2 3 4 1 2 1 4 12 1 3 6 . Impact Weapon 4 | . . . . . . . . . . . . . . . . . . . . . . . . . . . . . . . . . . . . . . . 1 2 . . 1 . Slashing Weapon 118 | . . . . . . 1 5 . 3 2 3 4 2 1 . . 1 2 3 1 5 1 . 10 4 3 3 . . 4 5 . . 5 14 2 3 6 4 12 2 3 3 1 Piercing Weapon 50 | . . . . . . . . . . . . . . . . . . . 2 1 2 1 . 1 . 4 1 . . 3 4 . . 1 11 . 1 7 2 7 . 1 1 . Special Melee Weapon 32 | . . . . . . . . . 2 . . . . . 1 . 1 . 1 1 1 1 . 1 . 2 . . . . 2 . . 1 6 . . 1 2 5 1 2 1 . Unidentified Prototypes 54 | . . . 1 . . . 8 . . . 1 . . . . . 1 . . . . 1 1 1 4 . . 3 . . . . 1 . 3 . . 1 5 6 . . 12 5 Parts Lost 54 | . . . 2 5 . . 4 . 2 . . 1 4 . . . . 1 . . 3 2 . 3 . 2 . . . 2 6 . . 1 1 . . . . . . . 3 12 Power 3 | . . . 1 1 . . . . . . . . . . . . . . . . . . . . . . . . . . . . . . . . . . . . . . . 1 Propulsion 8 | . . . 1 . . . 1 . . . . . . . . . . . . . . 1 . 2 . . . . . . 2 . . . 1 . . . . . . . . . Utility 24 | . . . . 1 . . 1 . 2 . . 1 2 . . . . 1 . . 3 . . 1 . 1 . . . 1 3 . . 1 . . . . . . . . 2 4 Weapon 19 | . . . . 3 . . 2 . . . . . 2 . . . . . . . . 1 . . . 1 . . . 1 1 . . . . . . . . . . . 1 7 Highest Loss Streak 4 | . . . 1 4 . . 3 . 2 . . 1 3 . . . . 1 . . 2 2 . 1 . 2 . . . 1 2 . . 1 1 . . . . . . . 1 3 Average Slot Usage (%) 96 | . 100 100 98 99 78 100 91 100 96 100 100 96 92 98 99 98 99 95 98 92 87 81 82 91 99 99 100 94 99 97 99 100 99 94 94 99 96 99 98 99 96 99 95 91 Engine 1 | . 14 14 11 10 11 11 9 9 1 . . . . . . . . . . . . . . . . . . . . . . . . . . . . . . . . . . . Core 6 | . . . . . . . . . 5 7 7 7 7 7 6 6 6 6 6 6 5 6 6 8 11 11 11 9 9 11 10 10 10 10 9 9 9 8 8 8 8 7 4 1 Treads 2 | . 20 28 19 15 . . 15 18 5 . . . . . . . . . . . . . . . . . . 4 . . . . . . . . . . . . . . . . Hover 15 | . . . . . . . . . . . . . . . . 7 18 20 19 19 18 14 16 18 22 22 22 11 20 22 24 25 25 25 21 22 22 20 20 20 20 18 19 19 Flight 2 | . . . . . . . . . 17 23 23 23 23 23 20 10 . . . . . . . . . . . . . . . . . . . . . . . . . . . . Device 9 | . . . 5 . 11 10 7 . 8 7 7 7 11 7 12 15 18 6 11 6 5 4 4 10 11 9 9 8 6 10 9 10 9 5 9 6 1 7 6 10 13 13 15 13 Storage 19 | . 28 28 32 33 33 33 33 36 13 7 7 7 7 7 6 6 6 13 14 20 20 19 18 13 16 17 22 26 27 22 15 15 15 17 18 24 23 27 29 32 18 26 14 15 Processor 7 | . . . . . . . . . 6 7 7 7 7 7 6 6 6 6 6 6 7 13 12 14 11 11 11 11 11 11 10 10 10 10 9 9 9 8 8 4 4 3 10 18 Hackware 12 | . . . . . . . . . 16 30 30 28 23 23 26 26 26 22 26 26 21 6 6 10 16 15 10 5 5 5 17 15 16 10 11 15 14 16 16 12 12 10 3 . Protection 3 | . . . 4 10 . . 6 18 3 . . . . 6 6 3 . 5 . . . 5 10 4 . . 1 2 3 3 2 5 3 5 4 1 6 2 . . 8 3 10 7 Energy Cannon 1 | . 15 14 9 5 1 . 6 11 1 . . . . . . . . . . . . . . . . . 4 1 1 1 . . . . . 1 . . . . . 1 . . Slashing Weapon 3 | . . . . . . 5 5 . 7 5 7 5 8 7 6 6 6 2 4 . 3 2 . 7 10 6 . . . 3 3 5 1 3 2 3 2 3 3 2 . 2 1 . Piercing Weapon 1 | . . . . . . . . . . . . . . . . . . . 1 5 1 4 4 . . . 3 5 5 2 2 5 5 3 3 . . 1 . 1 . . . . Special Melee Weapon 1 | . . . . . . . . . 5 7 7 7 . . 5 6 5 6 4 . . 1 . . . 2 . . . . . . . . 1 . . . . 1 . 2 . . Naked Turns . | . . . . . . . . . . . . . . . . . . . . . . . . . . . . . . . . . . . . . . . . . . . . . Heaviest Build 214 | 16 77 74 110 112 112 108 143 143 147 18 20 23 22 31 30 32 45 47 58 48 65 64 52 69 59 90 105 129 129 109 94 85 91 117 137 132 145 149 158 171 162 187 214 166 Greatest Support 185 | 26 40 40 46 46 24 24 56 51 79 18 20 20 28 31 33 35 60 48 48 48 57 57 55 79 60 95 95 95 91 95 106 85 111 123 143 131 145 153 160 160 160 185 185 160 Greatest Overweight (x) 14 | 1 2 1 3 4 4 4 4 2 1 . . 1 . . 2 1 1 . 1 . 2 2 14 2 . 1 1 1 1 1 1 . . 1 2 1 1 1 1 1 1 1 1 1 Average Overweight (x) . | . 1 1 1 2 4 4 2 2 . . . . . . . . . . . . . . . . . . . . 1 . . . . . . . . . . . . . . . Largest Inventory Capacity 66 | 8 20 20 34 28 28 28 34 34 34 8 8 8 8 8 10 10 14 14 20 20 20 20 14 20 20 30 28 34 34 34 28 24 28 28 36 40 48 52 52 54 54 66 66 32 Average Capacity 27 | 7 18 20 25 28 28 28 31 34 14 8 8 8 8 8 8 10 10 14 16 19 20 15 14 16 20 22 28 33 34 28 24 24 24 25 29 37 36 44 47 52 33 47 30 32 Most Carried 66 | 4 20 20 27 27 27 27 34 34 34 8 8 8 8 8 10 10 14 14 20 20 20 19 14 20 20 28 28 34 34 34 25 24 28 28 36 40 47 46 52 54 54 66 66 32 Average Carried 26 | 3 17 20 22 25 25 25 30 34 14 8 7 7 7 7 8 9 10 14 16 18 17 14 13 15 19 22 28 33 33 27 23 23 24 24 29 36 34 43 45 51 32 46 29 30 Final Capacity 66 | 8 20 20 28 28 28 28 34 34 8 8 8 8 8 8 10 10 14 14 20 20 20 14 14 20 20 28 28 34 34 28 24 24 28 28 36 40 48 46 52 54 54 66 32 32 Final Carried 66 | 4 20 20 27 23 27 27 34 34 8 8 8 8 8 8 9 10 14 14 20 19 19 14 13 20 20 28 28 34 34 26 24 24 28 28 36 40 47 44 52 54 54 66 32 28 Class Distribution -------------------- 32% | Hacker-Mutant 32% | Hauler-Mutant 13% | Hacker-Sprinter 6% | Bothacker-Mutant 4% | Hauler-Ninja Dominant Class ---------------- Hauler-Mutant | -10/Materials Hauler-Mutant | -10/Mines Hauler-Mutant | -9/Materials Hauler-Mutant | -9/Mines Hauler-Mutant | -9/Exiles Hauler-Mutant | -8/Mines Hauler-Mutant | -8/Materials Hauler-Mutant | -8/Garrison Hacker-Sprinter | -7/Factory Hacker-Sprinter | -7/Waste Hacker-Sprinter | -7/Factory Hacker-Sprinter | -7/Garrison Hacker-Sprinter | -7/Factory Hacker-Sprinter | -7/Garrison Hacker-Sprinter | -6/Factory Hacker-Mutant | -6/Waste Hacker-Mutant | -6/Factory Hacker-Mutant | -6/Garrison Hacker-Mutant | -6/Factory Hacker-Mutant | -6/Lower Caves Hacker-Mutant | -6/Lower Caves Mutant | -6/Data Miner Mutant | -5/Proximity Caves Hacker-Scout | -5/Factory Hacker-Sprinter | -5/Waste Hacker-Mutant | -5/Factory Hacker-Mutant | -5/Extension Hauler-Mutant | -5/Cetus Hauler-Mutant | -5/Archives Hauler-Mutant | -5/Hub_04(d) Hacker-Mutant | -4/Factory Hacker-Mutant | -4/Waste Hacker-Mutant | -4/Factory Hacker-Mutant | -4/Garrison Hacker-Mutant | -3/Research Hacker-Mutant | -3/Quarantine Hacker-Mutant | -3/Garrison Bothacker-Mutant | -2/Research Hauler-Mutant | -2/Testing Hauler-Mutant | -2/Section 7 Hacker-Mutant | -2/Garrison Hauler-Ninja | -1/Access Hauler-Mutant | -1/Command Hauler-Mutant | -1/Access_0 Resources | -11 -10 -10 -9 -9 -9 -8 -8 -8 -7 -7 -7 -7 -7 -7 -6 -6 -6 -6 -6 -6 -6 -6 -5 -5 -5 -5 -5 -5 -5 -5 -4 -4 -4 -4 -3 -3 -3 -2 -2 -2 -2 -1 -1 -1 ----------- Run | Scr Mat Min Mat Min Exi Min Mat Gar Fac Was Fac Gar Fac Gar Fac Was Fac Gar Fac Low Low Dat Pro Fac Was Fac Ext Cet Arc Hub Fac Was Fac Gar Res Qua Gar Res Tes Sec Gar Acc Com Ac0 Matter Collected 27892 | 308 292 . 298 258 . 130 856 23 502 216 125 90 446 168 170 62 1106 83 435 34 385 619 30 451 380 390 624 368 . 570 971 . 540 1310 1915 481 1194 983 1071 1938 786 1054 4984 1246 Remotely . | . . . . . . . . . . . . . . . . . . . . . . . . . . . . . . . . . . . . . . . . . . . . . Salvage Created 37213 | 190 618 161 490 98 . 65 1333 83 509 209 184 210 301 229 907 . 1284 215 714 . 184 440 . 585 . 1035 683 327 . 1054 2270 . 381 1402 2375 129 1002 1108 747 1898 1238 1495 9348 1712 Parts 1802 | 14 46 3 23 4 . 13 91 18 35 . 11 15 25 7 24 . 54 5 39 . 8 17 . 38 . 42 30 15 . 61 84 . 20 62 125 7 39 105 31 76 66 79 370 100 Haulers Intercepted 28 | . 1 . 1 . . . 5 . 2 . 3 . . . 4 . 1 . . . . . . 1 . 3 . . . 1 2 . . . 3 . . . . . . 1 . . Recyclers Shooed 26 | . 1 2 1 . . 1 . . 2 . 1 . . . . . 1 . . . . . . . . . . . . . 5 . . . 2 . . . . 2 . 1 7 . Parts Field Recycled . | . . . . . . . . . . . . . . . . . . . . . . . . . . . . . . . . . . . . . . . . . . . . . Retrieved Matter . | . . . . . . . . . . . . . . . . . . . . . . . . . . . . . . . . . . . . . . . . . . . . . Parts Self-Destructed 10 | . . . . . . . . . . . . . . . . . . . . . 10 . . . . . . . . . . . . . . . . . . . . . . . Prevented 2 | . . . . . . . . . . . . . . . . . . . . . 2 . . . . . . . . . . . . . . . . . . . . . . . Kills | -11 -10 -10 -9 -9 -9 -8 -8 -8 -7 -7 -7 -7 -7 -7 -6 -6 -6 -6 -6 -6 -6 -6 -5 -5 -5 -5 -5 -5 -5 -5 -4 -4 -4 -4 -3 -3 -3 -2 -2 -2 -2 -1 -1 -1 ------- Run | Scr Mat Min Mat Min Exi Min Mat Gar Fac Was Fac Gar Fac Gar Fac Was Fac Gar Fac Low Low Dat Pro Fac Was Fac Ext Cet Arc Hub Fac Was Fac Gar Res Qua Gar Res Tes Sec Gar Acc Com Ac0 Combat Hostiles Destroyed 454 | . 14 . 9 19 . 4 32 8 5 1 1 10 3 6 1 . 2 9 3 . 6 4 . 13 . 9 5 4 . 10 18 . 5 26 29 2 15 27 6 19 14 8 92 15 Melee 42 | . . . . . . . 3 . 1 . . 1 . 1 1 . . . . . . . . . . . 1 . . 6 4 . . 2 10 . . 7 . 3 . . 2 . Guns 107 | . . . 2 . . . 1 . . . . . . . . . . . . . . . . . . . . . . 1 . . . . . . 1 2 5 4 10 8 60 13 Cannons 37 | . 3 . 3 3 . . 9 1 . . . . . . . . . . 1 . . . . 1 . . 1 . . . 3 . . . 4 . 1 1 . . . . 5 1 AOE 214 | . 11 . 3 16 . 4 18 7 4 1 1 9 3 4 . . 1 9 2 . 5 . . 10 . 9 2 . . 1 9 . 5 18 14 1 11 17 . 8 2 . 9 . Classes Destroyed 27 | 2 6 . 2 1 . . 1 1 1 1 . . . 1 . . . . 1 . 3 . . . . 1 1 . . . . . . . . . . . 1 1 . . 3 . Worker 90 | . 1 . . . . 3 2 . 8 . 1 . 4 . . . 4 . 9 . . . . 2 . 7 . . . 7 13 . 5 . 6 . . 2 . 1 . 1 14 . Builder 15 | . 2 . . . . . 3 . . . . . . . . . . . . . . . . . . . . . . . 1 . . . 3 1 . . . 4 . 1 . . Tunneler 17 | 5 2 . . . . 1 . . . . . . . . 1 . 2 . . . . . . 1 . . . . . . 2 . . . 2 . . 1 . . . . . . Hauler 28 | . 1 . 1 . . . 5 . 2 . 3 . . . 4 . 1 . . . . . . 1 . 3 . . . 1 2 . . . 3 . . . . . . 1 . . Recycler 57 | 1 3 2 1 . . . 4 . 1 . . . 1 . 3 . 7 . 3 . . . . 1 . 2 3 . . . 7 . 2 . 4 . . . 1 4 . 3 4 . Minesweeper 1 | . . . . . . . . . . . . . . . . . . . . . 1 . . . . . . . . . . . . . . . . . . . . . . . Mechanic 2 | . . . . . . . . . . . . . . . . . . . 1 . . . . . . . . . . . . . . . . . . . . . . . 1 . Operator 8 | . . . . . . . 1 . . . . . 1 . . . . . . . . . . . . . . . . 1 1 . . . . . . . . . . 2 2 . Watcher 53 | . 1 . . . . . 2 . 3 . . . 3 . 1 . 2 . 2 . . . . 1 . 5 . 1 . 3 4 . . . 4 1 . 3 . 3 . 8 6 . Swarmer 127 | . 8 . . 3 . 4 15 7 4 . 1 7 3 . . . . . 2 . 3 . . 9 . 4 . . . . 4 . 5 12 3 . 8 13 . 8 . . 4 . Saboteur 9 | . . . . . . . . . . . . . . . . . . . . . . . . . . 1 . . . . . . . . 2 . . 3 . . . . 3 . Grunt 101 | . 6 . 7 . . . 8 . . . . 2 . 3 . . 1 8 . . 1 . . . . 4 2 . . 1 7 . . 9 11 . 4 . . 1 5 1 20 . Brawler 14 | . . . 1 . . . 2 . . . . . . 2 . . 1 . . . . . . . . . . . . 1 . . . 1 . . . . . . . . 6 . Duelist 6 | . . . . . . . . . . . . . . . . . . . . . 1 . . . . . . . . . 2 . . . 1 . . . . . . . 2 . Protector 1 | . . . . . . . . . . . . . . . . . . . . . . . . . . . . . . . . . . . . . . . . . . . 1 . Sentry 33 | . . . 1 . . . 7 . . . . 1 . . . . . . . . 1 . . 1 . . . . . 5 1 . . 3 1 . . . . 3 . 1 8 . Demolisher 2 | . . . . . . . . . . . . . . 1 . . . . . . . . . . . . . . . . . . . . . . . . . . . . 1 . Hunter 30 | . . . . . . . . 1 . . . . . . . . . 1 . . . . . 2 . . . . . . . . . . . 2 2 . . 2 4 . 16 . Programmer 74 | . . . . . . . . . 1 . . . . . 1 . . . 1 . . . . 1 . . 1 . . 3 4 . . . 11 . 1 11 5 3 4 6 21 . Behemoth 6 | . . . . . . . . . . . . . . . . . . . . . . . . . . . 2 . . . . . . 1 . . 1 . . . 1 . 1 . Compactor 1 | . . . . . . . . . . 1 . . . . . . . . . . . . . . . . . . . . . . . . . . . . . . . . . . Cetus Guard 4 | . . . . . . . . . . . . . . . . . . . . . . . . . . . . 4 . . . . . . . . . . . . . . . . S7 Guard 1 | . . . . . . . . . . . . . . . . . . . . . . . . . . . . . . . . . . . . . . . . 1 . . . . M Guard 2 | . . . . . . . . . . . . . . . . . . . . . . . . . . . . . . . . . . . . . . . . . . . 2 . Enhanced Grunt 14 | . . . . . . . . . . . . . . . . . . . . . . 4 . . . . . . . . . . . . . . . . . . . . . 10 Enhanced Sentry 1 | . . . . . . . . . . . . . . . . . . . . . . . . . . . . . . . . . . . . . . . . . . . . 1 Enhanced Hunter 1 | . . . . . . . . . . . . . . . . . . . . . . . . . . . . . . . . . . . . . . . . . . . . 1 Combat Programmer 2 | . . . . . . . . . . . . . . . . . . . . . . . . . . . . . . . . . . . . . . . . . . . 2 . Striker 1 | . . . . . . . . . . . . . . . . . . . . . . . . . . . . . . . . . . . . . . . . . . . 1 . Executioner 1 | . . . . . . . . . . . . . . . . . . . . . . . . . . . . . . . . . . . . . . . . . . . 1 . Alpha 7 2 | . . . . . . . . . . . . . . . . . . . . . . . . . . . . . . . . . . . . . . . . 1 . . 1 . Fortress 1 | . . . . . . . . . . . . . . . . . . . . . . . . . . . . . . . . . . . . . . . 1 . . . . . Samaritan 1 | . . . . . . . . . . . . . . . . . . . . . 1 . . . . . . . . . . . . . . . . . . . . . . . Assembled 16 | . . . . 16 . . . . . . . . . . . . . . . . . . . . . . . . . . . . . . . . . . . . . . . . Best Kill Streak 14 | 2 5 1 3 12 . 7 7 4 6 1 1 5 3 3 3 . 3 6 3 . 3 4 . 6 . 5 3 3 . 10 14 . 6 8 9 2 8 8 3 7 4 3 11 9 Combat Bots Only 12 | . 4 . 3 12 . 4 5 4 4 1 1 5 3 3 1 . 2 6 2 . 3 4 . 5 . 5 2 3 . 2 8 . 5 8 7 2 10 7 3 4 4 2 9 9 Max Kills in Single Turn 9 | 1 2 1 3 5 . 3 3 4 3 1 1 3 2 1 1 . 1 3 2 . 2 1 . 4 . 4 3 1 . 9 3 . 2 3 5 1 2 5 1 5 1 1 4 2 Gunslinging 1 | . . . . . . . . . . . . . . . . . . . . . . . . . . . . . . . . . . . . . . . . . . . . 1 Exploded 5 | . 2 . 3 5 . 2 3 4 3 1 1 3 2 1 . . 1 3 2 . 2 . . 3 . 4 2 . . 1 3 . 2 3 3 1 2 4 . 4 1 . 3 . Melee 1 | . . . . . . . 1 . 1 . . 1 . 1 1 . . . . . . . . . . . 1 . . 1 1 . . 1 1 . . 1 . 1 . . 1 . Uniques/NPCs Destroyed 4 | . . . . . . . . . . . . . . . . . . . . . . . . . . . . . . . . . . . . . . . . . . . 1 3 MAIN.C Shell (-1/Command) MAIN.C (-1/Command) A8 (-1/Access_0) A6 (-1/Access_0) Architect (-1/Access_0) Combat | -11 -10 -10 -9 -9 -9 -8 -8 -8 -7 -7 -7 -7 -7 -7 -6 -6 -6 -6 -6 -6 -6 -6 -5 -5 -5 -5 -5 -5 -5 -5 -4 -4 -4 -4 -3 -3 -3 -2 -2 -2 -2 -1 -1 -1 -------- Run | Scr Mat Min Mat Min Exi Min Mat Gar Fac Was Fac Gar Fac Gar Fac Was Fac Gar Fac Low Low Dat Pro Fac Was Fac Ext Cet Arc Hub Fac Was Fac Gar Res Qua Gar Res Tes Sec Gar Acc Com Ac0 Damage Taken 22968 | 40 295 . 349 869 . 26 1049 166 287 . 221 176 279 409 . . 98 37 76 . 269 643 5 744 . 90 42 155 248 1759 1332 . . 1076 1073 184 872 893 284 491 736 218 2800 4677 Core 3317 | 40 16 . 44 100 . 7 132 15 172 . 95 42 89 102 . . 20 . 16 . 42 . . 81 . . . . 62 379 88 . . 39 132 14 16 247 46 60 85 99 227 810 Absorbed by Shields 6945 | . . . . . . . . . . . . . . 37 . . . . . . . . . . . . 18 55 . 27 . . . 279 147 . . . 71 . 787 . 1948 3576 Redirected to Core 64 | . . . . . . . . . . . . . . . . . . . . . . . . . . . . . . . . . . . . . . . . . 64 . . . Core Remaining (%) 64 | 84 . 77 . . . 62 . 73 . . . . . 28 . . . . . . . . 90 . . . . . . 47 . . . 88 . . 87 . . . 65 . . 9 Volleys Fired 1583 | 38 48 7 32 22 . 4 103 17 17 4 3 13 5 13 . . 9 13 8 2 12 13 1 24 . 10 30 19 3 17 49 . 7 46 44 29 42 32 32 123 77 76 385 154 Largest 3 | 2 2 1 2 2 . 1 2 2 1 1 1 1 1 1 . . 1 1 1 1 1 1 1 1 . 1 1 1 1 2 1 . 1 2 1 1 2 1 1 2 2 1 3 3 Hottest 300 | 60 112 56 112 112 . 30 128 112 69 39 39 39 39 39 . . 113 80 113 80 80 75 75 80 . 80 80 240 40 75 88 . 80 89 113 113 153 120 120 200 220 94 300 300 Shots Fired 2065 | 47 51 7 57 30 . 4 120 20 17 4 3 13 5 13 . . 9 13 8 2 12 13 1 24 . 10 30 19 3 23 49 . 7 49 44 29 44 32 32 142 139 76 553 311 Gun 1176 | 47 2 . 30 3 . . 11 . . . . . . . . . . . . . . . . . . . . 1 . 14 . . . . . . 4 18 16 108 129 65 434 294 Cannon 463 | . 31 7 23 9 . . 75 14 14 . . . . . . . 1 . 8 . 6 3 1 15 . . 16 4 . 9 23 . . 26 17 16 12 2 11 19 4 11 69 17 Launcher 366 | . 18 . 4 18 . 4 34 6 3 4 3 13 5 13 . . 8 13 . 2 6 10 . 9 . 8 4 10 . . 23 . 5 23 21 3 24 12 . 11 6 . 43 . Special 60 | . . . . . . . . . . . . . . . . . . . . . . . . . . 2 10 4 3 . 3 . 2 . 6 10 4 . 5 4 . . 7 . Kinetic 489 | 38 2 . 30 3 . . 23 . . . . . . . . . . . . . . . . . . . . . . 14 . . . . . . 4 18 17 16 6 65 205 48 Thermal 74 | . . . . . . . 18 2 . . . . . . . . 1 . 2 . . . . . . . . 1 . . . . . . 1 11 2 1 6 16 4 . 7 2 Explosive 247 | . 18 . 4 18 . 4 34 6 3 4 3 11 5 7 . . . 13 . 2 6 . . 9 . 8 4 . . . 17 . 5 15 21 3 9 12 . 5 . . 1 . Electromagnetic 491 | 9 31 7 23 9 . . 45 12 14 . . 2 . 6 . . 8 . 6 . 6 13 1 15 . . 16 14 . 9 29 . . 34 16 5 25 1 4 9 6 11 101 4 Slashing 704 | . . . . . . . . . . . . . . . . . . . . . . . . . . . . . . . . . . . . . . . . 92 123 . 232 257 Robot Hit Streak 67 | 7 4 10 10 4 . 6 24 6 6 2 1 1 1 3 . . 7 . 2 . 6 8 . 5 . 8 15 6 5 5 14 . 7 10 18 11 25 11 15 41 18 19 49 67 Robot Miss Streak 8 | 3 4 . 3 4 . . 3 1 1 2 1 2 3 1 . . . . 2 . 1 1 1 3 . . 2 1 . 2 3 . . 2 2 1 1 2 2 2 3 3 8 3 Penetration Max 2 | . . . . . . . . . . . . . . . . . . . . . . . . . . . . . . . . . . . . . . 2 1 . 1 1 2 1 Secondary Targets 8 | . . . 1 . . . . . . . . . . . . . . . . . . . . . . . . . . . . . . . . . . . . . . . 2 5 Max Gunslinging Chain 2 | . . . 1 . . . . . . . . . . . . . . . . . . . . . . . . . . . . . . . . . . . . . . . 1 2 Shots Hit Robots 1802 | 27 22 7 37 11 . 4 86 3 27 2 11 4 12 7 21 . 34 . 27 2 18 9 5 25 . 33 30 10 3 43 80 . 13 39 101 14 34 47 30 107 80 65 404 268 Core Hits 1405 | 11 35 2 15 41 . 9 69 9 18 2 6 15 13 9 10 . 19 19 19 1 14 9 1 28 . 31 15 10 . 35 78 . 16 44 91 5 41 52 15 38 39 36 342 143 Critical Hits 353 | . . . 1 1 . . 2 . . . 1 1 . . . . 2 . 2 . . . . 2 . 1 . . . 3 3 . 1 . 6 . 1 14 24 22 5 45 165 51 Critical Kills 106 | . . . 1 1 . . 2 . . . 1 1 . . . . 2 . 2 . . . . . . 1 . . . 2 . . 1 . 3 . . 5 5 6 2 15 53 3 Critical Parts Destroyed 199 | . . . . . . . . . . . . . . . . . . . . . . . . 2 . . . . . 1 3 . . . 3 . . 9 19 9 2 26 95 30 Melee Attacks 2454 | . . . . . . 2 68 . 108 . 100 5 132 10 93 . 113 4 119 24 74 4 9 134 . 234 15 . . 89 202 . 93 24 238 33 10 133 43 144 2 149 45 1 Kinetic 6 | . . . . . . . . . . . . . . . . . . . . . . . . . . . . . . . . . . . . . . . 1 2 . . 3 . Impact . | . . . . . . . . . . . . . . . . . . . . . . . . . . . . . . . . . . . . . . . . . . . . . Slashing 1842 | . . . . . . 2 68 . 107 . 100 5 132 10 91 . 112 4 75 . 47 . . 131 . 221 3 . . 45 127 . 23 4 119 33 1 96 39 63 2 148 33 1 Piercing 581 | . . . . . . . . . . . . . . . . . . . 44 24 27 1 9 . . 12 12 . . 44 70 . 70 20 117 . 9 36 2 76 . . 8 . Sneak Attacks 162 | . . . . . . 1 2 . 6 . 6 1 6 . 8 . 14 . 13 . 2 4 . 5 . 13 2 . . 3 28 . 6 . 16 . . 3 3 10 . 4 6 . Combat Hostiles 3 | . . . . . . . . . . . . 1 . . . . . . . . . . . . . . 1 . . 1 . . . . . . . . . . . . . . Follow-up Attacks 30 | . . . . . . . . . 2 . . . . . . . . . . . . . . 2 . 1 . . . 4 5 . . 1 9 . . 3 . 2 . . 1 . Damage Inflicted 107545 | 277 1200 162 672 1334 . 472 4109 500 1668 472 989 997 1247 767 1547 . 2541 1712 2368 137 1483 520 128 2614 . 3949 1134 647 . 3044 8271 . 1742 4050 8579 545 3737 4186 986 8135 3092 1917 15851 9764 Guns 24914 | 243 16 . 209 . . . 145 . . . . . . . . . . . . . . . . . . . . . . 171 . . . . . . 26 158 308 2651 2687 580 9386 8334 Cannons 10449 | . 411 162 368 97 . . 1293 45 315 . . . . . . . 38 . 156 . 142 60 . 390 . . 238 57 . 130 535 . . 615 620 126 469 130 169 74 . 521 1936 1352 Explosions 37920 | 34 773 . 95 1237 . 318 2213 455 360 472 253 865 467 576 . . 309 1712 340 79 836 370 . 1474 . 1698 449 590 . 1416 3880 . 786 2722 3471 370 2248 2070 . 1542 405 . 2957 78 Melee 34262 | . . . . . . 154 458 . 993 . 736 132 780 191 1547 . 2194 . 1872 58 505 90 128 750 . 2251 447 . . 1327 3856 . 956 713 4488 49 994 1828 509 3868 . 816 1572 . Ramming . | . . . . . . . . . . . . . . . . . . . . . . . . . . . . . . . . . . . . . . . . . . . . . Kinetic 6191 | 194 16 . 209 . . . 315 . . . . . . . . . . . . . . . . . . . . . . 171 . . . . . . 26 158 308 199 67 580 2538 1410 Thermal 3892 | 34 76 . . . . . 328 . . . 78 . 144 . . . 38 . 390 . . . . 67 . 233 128 41 . . 125 . . 31 . 42 209 56 . . 16 . 1458 398 Explosive 28431 | . 697 . 95 1237 . 318 2164 455 360 472 175 865 323 299 . . . 1712 . 79 836 . . 1407 . 1465 321 . . . 3325 . 786 2236 3471 370 1670 2070 . 1223 . . . . Electromagnetic 14798 | 49 411 162 368 97 . . 844 45 315 . . . . 277 . . 309 . 106 . 142 430 . 390 . . 238 606 . 1546 965 . . 1070 620 84 838 74 169 393 389 521 3239 101 Impact . | . . . . . . . . . . . . . . . . . . . . . . . . . . . . . . . . . . . . . . . . . . . . . Slashing 39035 | . . . . . . 154 458 . 993 . 736 132 780 191 1547 . 2194 . 1407 . 217 . . 750 . 1947 104 . . 414 1773 . 140 68 980 49 . 588 509 3577 2620 816 8036 7855 Piercing 15198 | . . . . . . . . . . . . . . . . . . . 465 58 288 90 128 . . 304 343 . . 913 2083 . 816 645 3508 . 994 1240 . 2743 . . 580 . Highest Corruption 9 | . 1 1 . 2 2 2 5 5 1 1 1 1 . . . . . . . . . . . 1 . . . . . 9 4 3 2 . 3 . . 4 4 . 1 1 3 1 Average Corruption 1 | . 1 1 . 2 2 2 5 5 1 1 1 1 . . . . . . . . . . . 1 . . . . . 1 1 2 1 . 1 . . 2 2 . 1 1 1 1 Corruption Purged 33 | . . . . . . . . . . . . 1 . . . . . . . . . . . 1 . . . . . . 1 1 4 . 6 . . 6 7 . . 1 5 . Effects 132 | . 1 7 . 3 3 8 3 16 3 . 8 1 . . . . . . . . . . . 1 . . . . . 4 3 1 4 . 10 . . 16 10 . 3 . 23 4 Message Errors 36 | . 1 3 . 1 1 2 . 4 2 . 4 . . . . . . . . . . . . . . . . . . . 1 . 3 . 3 . . 1 3 . 2 . 3 2 Matter Fused 14 | . . . . . . . . 2 . . . . . . . . . . . . . . . . . . . . . . . . . . . . . 7 2 . . . 3 . Heat Flow Errors 14 | . . . . 1 . 3 1 2 . . . . . . . . . . . . . . . . . . . . . . . . . . 2 . . 2 1 . . . 2 . Energy Discharges 23 | . . 1 . 1 1 2 1 1 . . 2 . . . . . . . . . . . . 1 . . . . . . 1 . . . 2 . . 1 2 . . . 6 1 Data Loss (minor) 19 | . . 3 . . 1 1 1 2 . . . 1 . . . . . . . . . . . . . . . . . 2 . 1 1 . 1 . . 2 1 . . . 2 . Data Loss (major) 2 | . . . . . . . . 2 . . . . . . . . . . . . . . . . . . . . . . . . . . . . . . . . . . . . Misfires 1 | . . . . . . . . 1 . . . . . . . . . . . . . . . . . . . . . . . . . . . . . . . . . . . . Targeting Errors 20 | . . . . . . . . 2 1 . 2 . . . . . . . . . . . . . . . . . . 2 1 . . . 2 . . 3 1 . 1 . 5 . Weapon Failures 3 | . . . . . . . . . . . . . . . . . . . . . . . . . . . . . . . . . . . . . . . . . . . 2 1 Overload Shots 1 | . . . . . . . . . . . . . . . . . . . . . . . . . . . . 1 . . . . . . . . . . . . . . . . Overflow Damage 8041 | 9 30 . 10 18 . 72 94 . 293 . 224 34 56 . 191 . 419 61 430 54 153 . 2 246 . 502 99 . . 190 1150 . 243 191 560 . 256 264 336 718 . 435 701 . Projectiles 447 | . 30 . 10 . . . 15 . 19 . . . . . . . . . . . . . . 36 . . . . . . 63 . . . 25 . . . 45 . . 102 102 . Explosions 1451 | 9 . . . 18 . . 61 . 5 . 48 34 55 . . . . 61 79 54 50 . . 91 . 92 . . . 105 243 . 31 143 28 . 85 10 . 45 . . 104 . Melee 6143 | . . . . . . 72 18 . 269 . 176 . 1 . 191 . 419 . 351 . 103 . 2 119 . 410 99 . . 85 844 . 212 48 507 . 171 254 291 673 . 333 495 . Knockbacks 10 | . . . . . . . . . . . . . . . . . . . . . . . . . . . . . . . . . . . . . . . . . . . . 10 Impact . | . . . . . . . . . . . . . . . . . . . . . . . . . . . . . . . . . . . . . . . . . . . . . Kinetic 10 | . . . . . . . . . . . . . . . . . . . . . . . . . . . . . . . . . . . . . . . . . . . . 10 Secondary . | . . . . . . . . . . . . . . . . . . . . . . . . . . . . . . . . . . . . . . . . . . . . . Self-Inflicted Damage 763 | 40 65 . . 150 . 1 73 69 . . . 26 . 48 . . 25 . . . . . . . . . . . . 119 94 . . 9 . . 3 . . 8 . . 33 . Shots 37 | 1 2 . . 7 . 1 3 2 . . . 1 . 2 . . 1 . . . . . . . . . . . . 2 2 . . 2 . . 1 . . 1 . . 9 . Rammed . | . . . . . . . . . . . . . . . . . . . . . . . . . . . . . . . . . . . . . . . . . . . . . Targets Rammed . | . . . . . . . . . . . . . . . . . . . . . . . . . . . . . . . . . . . . . . . . . . . . . Kicked . | . . . . . . . . . . . . . . . . . . . . . . . . . . . . . . . . . . . . . . . . . . . . . Crushed . | . . . . . . . . . . . . . . . . . . . . . . . . . . . . . . . . . . . . . . . . . . . . . Highest Temperature 420 | 52 111 48 181 119 . 260 234 226 56 . . 6 9 5 . . 66 230 105 52 90 216 36 218 . 241 150 192 40 188 319 . 111 271 220 48 234 205 256 198 365 . 414 420 Average Temperature 57 | 22 34 19 62 39 . 108 49 77 23 . . 4 9 3 . . 24 98 31 26 38 54 23 54 . 24 54 40 18 51 28 . 33 69 48 30 79 53 34 42 119 . 90 137 Received Heat Transfer 2165 | . 63 . 177 . . . 342 . 12 . 24 15 27 30 . . 27 18 . . 54 84 . 27 . 30 4 18 . 135 156 . . 146 107 . 132 18 8 18 86 9 303 95 Effects 7 | . . . . . . . . . . . . . . . . . . . . . . . . . . . . . . . . . . . . . . . . . . . 1 6 Shutdowns 1 | . . . . . . . . . . . . . . . . . . . . . . . . . . . . . . . . . . . . . . . . . . . 1 . Energy Bleed 2 | . . . . . . . . . . . . . . . . . . . . . . . . . . . . . . . . . . . . . . . . . . . . 2 Interference 3 | . . . . . . . . . . . . . . . . . . . . . . . . . . . . . . . . . . . . . . . . . . . . 3 Matter Decay 1 | . . . . . . . . . . . . . . . . . . . . . . . . . . . . . . . . . . . . . . . . . . . . 1 Siege Activations . | . . . . . . . . . . . . . . . . . . . . . . . . . . . . . . . . . . . . . . . . . . . . . Robots Corrupted 58 | . . . 1 . . . 3 . 1 . . . . 1 . . 1 . . . 1 4 . 2 . . 1 4 . 2 3 . . 6 2 1 3 . 1 2 2 1 15 1 Combat Hostiles 50 | . . . 1 . . . 1 . . . . . . 1 . . 1 . . . 1 4 . 2 . . 1 4 . 2 2 . . 6 1 1 2 . 1 2 2 . 14 1 Parts Fried 144 | . 1 . 2 . . . 4 . 2 . . . . 3 . . 3 . 1 . 1 11 . 2 . 1 2 4 . 4 11 . . 16 11 . 4 5 2 6 3 9 30 6 Impact Corruptions . | . . . . . . . . . . . . . . . . . . . . . . . . . . . . . . . . . . . . . . . . . . . . . Robots Melted . | . . . . . . . . . . . . . . . . . . . . . . . . . . . . . . . . . . . . . . . . . . . . . Combat Hostiles . | . . . . . . . . . . . . . . . . . . . . . . . . . . . . . . . . . . . . . . . . . . . . . Parts Melted 3 | . . . . . . . 1 . . . . . . . . . . . . . . . . . . . 2 . . . . . . . . . . . . . . . . . Heat Transferred 2977 | 50 100 . . . . . 481 . . . 50 . 100 . . . 37 . 287 . . . . 50 . 150 200 50 . . 100 . . 50 . 37 174 37 . . 50 . 930 44 Parts Sabotaged 1 | . . . . . . . . . . . . . . . . . . . . . . . . . . . . . . . . . . . . . . . . . . . 1 . Parts Stolen 10 | . . . . . . . . . . . . . . . . . . . . 2 7 . 1 . . . . . . . . . . . . . . . . . . . . . Parts Stripped . | . . . . . . . . . . . . . . . . . . . . . . . . . . . . . . . . . . . . . . . . . . . . . Power Chain Reactions 24 | 1 3 . . . . . 1 . . . . . . . . . . . . . . . . . . . 1 1 . . 1 . . 1 . . 1 . . 1 1 . 12 . Missiles Intercepted . | . . . . . . . . . . . . . . . . . . . . . . . . . . . . . . . . . . . . . . . . . . . . . Alert | -11 -10 -10 -9 -9 -9 -8 -8 -8 -7 -7 -7 -7 -7 -7 -6 -6 -6 -6 -6 -6 -6 -6 -5 -5 -5 -5 -5 -5 -5 -5 -4 -4 -4 -4 -3 -3 -3 -2 -2 -2 -2 -1 -1 -1 ------- Run | Scr Mat Min Mat Min Exi Min Mat Gar Fac Was Fac Gar Fac Gar Fac Was Fac Gar Fac Low Low Dat Pro Fac Was Fac Ext Cet Arc Hub Fac Was Fac Gar Res Qua Gar Res Tes Sec Gar Acc Com Ac0 Peak Influence 1250 | 30 300 66 160 62 . 137 570 640 506 70 521 795 453 304 430 145 480 611 486 . . . . 1180 413 674 724 515 520 1175 1250 437 528 983 976 522 640 1149 553 705 591 652 1091 . Average Influence 336 | 12 141 19 58 42 . 59 233 510 237 46 144 622 140 227 244 145 110 466 160 . . . . 510 413 257 470 324 311 315 590 437 201 657 536 145 526 498 214 287 318 408 623 . Maximum Alert Level 5 | . 1 . . . . . 2 2 2 . 2 3 2 1 2 . 2 2 2 . . . . 4 2 2 3 2 2 4 4 2 2 3 3 2 2 4 2 3 2 2 5 . Low Security (%) 37 | 100 77 100 100 100 . 100 33 . 34 100 83 . 71 28 46 100 85 . 61 . . . . 32 . 54 . 3 42 23 14 . 44 9 10 74 5 15 63 46 30 5 . . Level 1 21 | . 22 . . . . . 50 26 65 . . 12 9 71 25 . 8 31 32 . . . . 11 . 12 27 83 7 66 2 . 52 10 24 24 8 16 . 25 24 44 3 . Level 2 28 | . . . . . . . 15 73 . . 16 36 18 . 27 . 5 68 6 . . . . 11 100 33 65 13 50 . 48 100 3 27 37 1 86 48 36 27 45 50 45 . Level 3 8 | . . . . . . . . . . . . 51 . . . . . . . . . . . 34 . . 7 . . 8 27 . . 52 28 . . 16 . . . . 18 . Level 4 1 | . . . . . . . . . . . . . . . . . . . . . . . . 9 . . . . . 2 6 . . . . . . 2 . . . . 8 . Level 5 2 | . . . . . . . . . . . . . . . . . . . . . . . . . . . . . . . . . . . . . . . . . . . 23 . High Security . | . . . . . . . . . . . . . . . . . . . . . . . . . . . . . . . . . . . . . . . . . . . . . Max Security . | . . . . . . . . . . . . . . . . . . . . . . . . . . . . . . . . . . . . . . . . . . . . . Squads Dispatched 168 | . 2 . 4 . . . 3 . 9 . 3 . 7 . 7 . 4 . 11 . . . . 9 . 11 2 . . 5 15 . 3 . 18 2 . 13 4 8 . 11 17 . Investigation 45 | . 1 . 4 . . . 1 . 6 . . . 4 . 2 . 2 . 3 . . . . 2 . 4 . . . . 5 . 1 . 4 . . 2 . . . 1 3 . Extermination 67 | . . . . . . . . . 3 . 2 . 3 . 2 . 2 . 4 . . . . 2 . 3 . . . 3 5 . 2 . 7 2 . 4 3 7 . 6 7 . Reinforcement 26 | . 1 . . . . . 2 . . . 1 . . . 2 . . . 4 . . . . 3 . 1 1 . . 2 . . . . 3 . . 1 1 1 . 1 2 . Assault 30 | . . . . . . . . . . . . . . . 1 . . . . . . . . 2 . 3 1 . . . 5 . . . 4 . . 6 . . . 3 5 . Garrison . | . . . . . . . . . . . . . . . . . . . . . . . . . . . . . . . . . . . . . . . . . . . . . Intercept . | . . . . . . . . . . . . . . . . . . . . . . . . . . . . . . . . . . . . . . . . . . . . . Construction Impeded 7 | . . . . . . . 1 . . . . . . . . . . . 1 . . . . 1 . 1 1 . . 1 . . . . . . . . . 1 . . . . Haulers Reinforced 6 | . . . . . . . . . . . 1 . . . 2 . . . . . . . . 1 . . . . . . . . . . 1 . . . . . . 1 . . Stealth | -11 -10 -10 -9 -9 -9 -8 -8 -8 -7 -7 -7 -7 -7 -7 -6 -6 -6 -6 -6 -6 -6 -6 -5 -5 -5 -5 -5 -5 -5 -5 -4 -4 -4 -4 -3 -3 -3 -2 -2 -2 -2 -1 -1 -1 --------- Run | Scr Mat Min Mat Min Exi Min Mat Gar Fac Was Fac Gar Fac Gar Fac Was Fac Gar Fac Low Low Dat Pro Fac Was Fac Ext Cet Arc Hub Fac Was Fac Gar Res Qua Gar Res Tes Sec Gar Acc Com Ac0 Distress Signals 49 | . 1 . . . . . 1 . 2 . 5 . . . 2 . 2 . . . . . . 2 . 1 2 3 . 2 2 . . . . 1 . 3 2 . . 1 17 . Communications Jammed 51 | . . . . . . . . . . . . . . . . . . . . . . . . . . . . . . . 8 . . . 5 . . 3 5 11 . 8 11 . Distress Signals 51 | . . . . . . . . . . . . . . . . . . . . . . . . . . . . . . . 8 . . . 5 . . 3 5 11 . 8 11 . Times Spotted 849 | . 34 . 8 23 . 3 42 4 20 2 31 8 19 14 11 . 12 4 20 2 11 4 1 20 . 25 15 12 8 45 59 . 12 17 55 12 19 51 12 28 17 27 107 35 Peak Tracking Total 14 | . 4 . 3 14 . 3 4 3 9 1 6 4 4 7 3 . 4 5 6 2 3 4 1 4 . 6 3 5 9 13 8 . 3 5 7 3 7 13 3 4 6 3 11 7 Tactical Retreats 129 | . 2 . . 1 . . 1 1 7 . 10 2 1 1 3 . 3 . . . 2 . . 9 . 5 . . . 13 10 . . 2 12 2 2 17 1 4 2 3 13 . Traps | -11 -10 -10 -9 -9 -9 -8 -8 -8 -7 -7 -7 -7 -7 -7 -6 -6 -6 -6 -6 -6 -6 -6 -5 -5 -5 -5 -5 -5 -5 -5 -4 -4 -4 -4 -3 -3 -3 -2 -2 -2 -2 -1 -1 -1 ------- Run | Scr Mat Min Mat Min Exi Min Mat Gar Fac Was Fac Gar Fac Gar Fac Was Fac Gar Fac Low Low Dat Pro Fac Was Fac Ext Cet Arc Hub Fac Was Fac Gar Res Qua Gar Res Tes Sec Gar Acc Com Ac0 Traps Triggered 60 | . 1 . 1 . . . . 2 3 . 1 1 3 2 1 . 1 . 1 . . . . 2 . 1 2 . . 2 2 . 2 4 7 . 5 1 . . 3 3 9 . Indirectly 3 | . . . . . . . . . . . . . . . . . 1 . . . . . . . . . . . . 2 . . . . . . . . . . . . . . Trap Hack Attempts 128 | . . . . . . . . . 2 . . . . . . . 12 11 6 . . . . . . 53 . . . . 2 . . . 42 . . . . . . . . . Triggered 3 | . . . . . . . . . . . . . . . . . 1 . 1 . . . . . . . . . . . 1 . . . . . . . . . . . . . Disarmed 4 | . . . . . . . . . . . . . . . . . . . . . . . . . . 3 . . . . . . . . 1 . . . . . . . . . Reprogrammed 45 | . . . . . . . . . 7 . 4 . . . . . 5 6 1 . . . . . . 13 . . . . . . . . 9 . . . . . . . . . Reused 19 | . . . . . . . . . 1 . 2 . . . . . 1 2 . . . . . . . 9 . . . . . . . . 4 . . . . . . . . . Traps Extracted . | . . . . . . . . . . . . . . . . . . . . . . . . . . . . . . . . . . . . . . . . . . . . . Installed . | . . . . . . . . . . . . . . . . . . . . . . . . . . . . . . . . . . . . . . . . . . . . . Triggered 35 | . . . . . . . . . 2 . 2 . . . . . 2 2 . . 2 . . . . 12 . . . . . . . . 6 . . . . . . . 7 . Machines | -11 -10 -10 -9 -9 -9 -8 -8 -8 -7 -7 -7 -7 -7 -7 -6 -6 -6 -6 -6 -6 -6 -6 -5 -5 -5 -5 -5 -5 -5 -5 -4 -4 -4 -4 -3 -3 -3 -2 -2 -2 -2 -1 -1 -1 ---------- Run | Scr Mat Min Mat Min Exi Min Mat Gar Fac Was Fac Gar Fac Gar Fac Was Fac Gar Fac Low Low Dat Pro Fac Was Fac Ext Cet Arc Hub Fac Was Fac Gar Res Qua Gar Res Tes Sec Gar Acc Com Ac0 Machines Disabled 136 | . 1 . 1 . . . 2 2 . . 1 7 3 2 . . . 3 4 . . 1 . 4 . 5 2 1 . 28 14 . 2 6 3 8 2 1 3 15 3 1 6 5 Max in Single Turn 20 | . 1 . 1 . . . 1 1 . . 1 2 2 1 . . . 1 4 . . 1 . 2 . 2 1 1 . 20 4 . 1 1 1 1 1 1 1 1 1 1 2 1 Garrison Access 32 | . . . . . . . . . 2 . 2 . 2 . 1 . 2 . 2 . . . . 1 . 4 . . . . 3 . 2 . 3 . . 3 1 . . 4 . . Garrison Relay 10 | . . . . . . . . 1 . . . 2 . 1 . . . 1 . . . . . . . . . . . . . . . 2 . . 1 . . . 2 . . . Phase Generator 2 | . . . . . . . . . . . . 1 . . . . . . . . . . . . . . . . . . . . . . . . . . . . . . 1 . Network Hub 2 | . . . . . . . . . . . . . . . . . . . . . . . . . . . . . . 2 . . . . . . . . . . . . . . Machines Sabotaged . | . . . . . . . . . . . . . . . . . . . . . . . . . . . . . . . . . . . . . . . . . . . . . Garrisons Compromised 1 | . . . . . . . . . . . . . . . . . . . 1 . . . . . . . . . . . . . . . . . . . . . . . . . Overloaded Fab Kills . | . . . . . . . . . . . . . . . . . . . . . . . . . . . . . . . . . . . . . . . . . . . . . Fab Network Shutdowns 13 | . . . . . . . . . 1 . 1 . . . 1 . 1 . 1 . . . . 1 . 1 . . . . 1 . 1 . 1 . . 1 1 . . 1 . . Hacking | -11 -10 -10 -9 -9 -9 -8 -8 -8 -7 -7 -7 -7 -7 -7 -6 -6 -6 -6 -6 -6 -6 -6 -5 -5 -5 -5 -5 -5 -5 -5 -4 -4 -4 -4 -3 -3 -3 -2 -2 -2 -2 -1 -1 -1 --------- Run | Scr Mat Min Mat Min Exi Min Mat Gar Fac Was Fac Gar Fac Gar Fac Was Fac Gar Fac Low Low Dat Pro Fac Was Fac Ext Cet Arc Hub Fac Was Fac Gar Res Qua Gar Res Tes Sec Gar Acc Com Ac0 Machines Accessed 404 | . 5 . 5 . 5 . 7 . 19 . 20 . 25 . 17 . 18 . 22 1 2 4 . 18 . 33 8 2 1 12 24 . 23 . 27 13 . 18 13 16 . 33 13 . Terminals 259 | . 4 . 5 . . . 5 . 14 . 13 . 17 . 13 . 13 . 12 1 . . . 9 . 21 8 2 . 12 14 . 12 . 14 9 . 10 8 14 . 19 10 . Fabricators 29 | . . . . . . . . . 1 . 4 . 2 . 2 . 1 . 3 . . . . 4 . 3 . . . . 1 . 2 . 2 . . 1 2 . . 1 . . Repair Stations 26 | . . . . . . . . . . . . . 1 . . . 1 . 2 . . . . 3 . 2 . . . . 2 . 3 . 2 2 . 1 2 . . 3 2 . Recycling Units 23 | . 1 . . . . . . . 1 . . . 1 . . . . . 2 . . . . 1 . 2 . . . . 3 . 2 . 4 . . 2 . . . 3 1 . Scanalyzers 13 | . . . . . . . 1 . 1 . . . 1 . 1 . . . . . . . . . . 1 . . . . . . 1 . 2 1 . 1 . 1 . 2 . . Garrison Access 42 | . . . . . . . 1 . 2 . 3 . 3 . 1 . 3 . 3 . . . . 1 . 4 . . . . 4 . 3 . 3 1 . 3 1 1 . 5 . . Total Hacks 1369 | . 10 . 17 . 49 . 21 . 43 . 50 . 70 . 61 . 50 . 58 3 2 26 . 51 . 81 26 7 25 36 98 . 79 . 99 61 . 64 48 63 . 114 57 . Successful 1018 | . 3 . 9 . 49 . 10 . 26 . 40 . 51 . 49 . 45 . 54 2 2 26 . 34 . 69 19 5 25 25 77 . 60 . 60 47 . 40 39 50 . 80 22 . Failed 346 | . 7 . 7 . . . 11 . 17 . 10 . 19 . 11 . 4 . 4 1 . . . 17 . 11 7 2 . 11 21 . 19 . 39 14 . 24 9 13 . 33 35 . Catastrophic 46 | . 1 . . . . . 2 . 4 . 2 . 3 . . . 1 . . . . . . 2 . 1 . . . 1 3 . 1 . 8 3 . 4 1 1 . 3 5 . Database Lockouts 5 | . . . 1 . . . . . . . . . . . 1 . 1 . . . . . . . . 1 . . . . . . . . . . . . . . . 1 . . Manual 810 | . 5 . 16 . 1 . 12 . 32 . 29 . 47 . 46 . 33 . 31 3 . . . 22 . 41 25 8 . 35 57 . 50 . 50 45 . 40 27 48 . 68 39 . Terminals 923 | . 7 . 17 . . . 13 . 37 . 39 . 54 . 47 . 40 . 37 3 . . . 24 . 56 26 7 . 36 62 . 54 . 65 46 . 48 26 60 . 79 40 . Fabricators 100 | . . . . . . . . . 2 . 8 . 7 . 10 . 2 . 6 . . . . 13 . 7 . . . . 8 . 5 . 12 . . 2 12 . . 6 . . Repair Stations 103 | . . . . . . . . . . . . . 2 . . . 4 . 6 . . . . 11 . 6 . . . . 15 . 8 . 8 7 . 4 8 . . 13 11 . Recycling Units 36 | . 3 . . . . . . . 1 . . . 1 . . . . . 3 . . . . 1 . 2 . . . . 4 . 4 . 5 . . 2 . . . 4 6 . Scanalyzers 26 | . . . . . . . 5 . 1 . . . 2 . 3 . . . . . . . . . . 3 . . . . . . 2 . 3 1 . 2 . 1 . 3 . . Garrison Access 79 | . . . . . . . 3 . 2 . 3 . 4 . 1 . 4 . 6 . . . . 2 . 7 . . . . 9 . 6 . 6 7 . 6 2 2 . 9 . . Terminal Hacks 480 | . 1 . 5 . 49 . 3 . 13 . 18 . 20 . 19 . 22 . 23 2 2 26 . 9 . 32 8 2 25 9 28 . 23 . 26 23 . 14 10 29 . 30 9 . Record 86 | . . . . . 48 . . . . . . . . . . . . . . . . 11 . . . 1 . . 25 . . . . . . 1 . . . . . . . . Part Schematic 32 | . . . 2 . . . . . 2 . 1 . . . 3 . 2 . 4 . . 5 . . . 3 . . . . . . 2 . 2 5 . . 1 . . . . . Robot Schematic 8 | . . . . . . . . . . . . . . . . . . . . . . 7 . . . . . . . . 1 . . . . . . . . . . . . . Robot Analysis 8 | . . . . . . . . . . . . . . . 1 . . . . . . . . . . . . . . . . . 1 . 1 . . . . . . 5 . . Prototype ID Bank 7 | . . . . . . . . . 1 . . . . . . . 2 . 1 . . 3 . . . . . . . . . . . . . . . . . . . . . . Open Door 11 | . . . . . . . . . . . . . . . . . . . . . 2 . . . . . 2 . . . . . . . 1 . . . . 4 . 1 1 . Level Access Points 1 | . . . . . . . . . . . . . . . . . . . . 1 . . . . . . . . . . . . . . . . . . . . . . . . Branch Access Points 5 | . . . . . . . . . . . . . . . . . 1 . . 1 . . . . . 1 . . . . 1 . . . . . . 1 . . . . . . Machine Index 6 | . . . . . . . . . . . . . . . . . . . . . . . . . . . . . . . 1 . 1 . 1 . . 1 . . . 1 1 . Terminal Index 20 | . . . 1 . . . 1 . 1 . 1 . 1 . 1 . 1 . 1 . . . . 1 . 1 1 . . 1 1 . 1 . 1 1 . 1 1 1 . 1 . . Fabricator Index 10 | . . . . . . . . . . . 1 . 1 . 1 . 1 . 1 . . . . 1 . 1 . . . . 1 . . . 1 . . . . . . 1 . . Repair Station Index 1 | . . . . . . . . . . . . . . . . . . . . . . . . . . . . . . . . . . . . 1 . . . . . . . . Scanalyzer Index 1 | . . . . . . . . . . . . . . . . . . . . . . . . . . . . . . . . . . . 1 . . . . . . . . . Garrison Index 8 | . . . . . . . . . . . 1 . 1 . . . 1 . 1 . . . . . . 1 . . . . . . . . 1 1 . . . 1 . . . . Unreport Threat 59 | . . . . . . . . . 4 . . . 3 . . . . . 2 . . . . 2 . 4 1 2 . . 4 . 5 . 5 5 . 5 3 5 . 4 5 . Locate Traps 20 | . . . . . . . 1 . . . 2 . 2 . 2 . . . . . . . . 1 . . . . . . 4 . 1 . 2 1 . . . 1 . 2 1 . Reprogram Traps 3 | . . . . . . . . . 1 . 1 . . . . . . . . . . . . . . 1 . . . . . . . . . . . . . . . . . . Maintenance Status 1 | . . . . . . . . . . . . . . . . . . . 1 . . . . . . . . . . . . . . . . . . . . . . . . . Surveillance Status 1 | . . . . . . . . . . . . . . . . . . . . . . . . . . 1 . . . . . . . . . . . . . . . . . . Recall Investigation 12 | . . . . . . . . . . . . . 2 . 2 . . . 1 . . . . 1 . 1 . . . . 2 . 1 . 1 . . . . . . 1 . . Recall Extermination 36 | . . . . . . . . . 2 . 2 . 2 . 2 . 2 . 3 . . . . . . 2 . . . . 4 . 2 . 3 2 . 1 1 5 . 3 . . Recall Reinforcements 7 | . . . . . . . . . . . 1 . . . 1 . . . 2 . . . . 1 . . 1 . . 1 . . . . . . . . . . . . . . Recall Assault 10 | . . . . . . . . . . . . . . . . . . . . . . . . . . 1 1 . . . 2 . . . 1 . . 2 . . . 3 . . Hauler Manifests 14 | . . . . . . . . . . . 1 . 1 . 1 . 1 . 1 . . . . 1 . 1 . . . . 1 . 1 . . 1 . 1 1 1 . 1 . . Registered Prototypes 2 | . . . . . . . . . . . . . . . . . 1 . . . . . . . . . . . . . 1 . . . . . . . . . . . . . Zone Layout 109 | . 1 . 2 . . . 1 . 2 . 7 . 7 . 5 . 10 . 5 . . . . 1 . 13 2 . . 7 5 . 8 . 5 5 . 2 3 10 . 7 1 . EX-Prototype ID Bank 1 | . . . . . 1 . . . . . . . . . . . . . . . . . . . . . . . . . . . . . . . . . . . . . . . Activate Exoskeleton 1 | . . . . . . . . . . . . . . . . . . . . . . . . . . . . . . . . . . . . . . . . 1 . . . . Fabricator Hacks 76 | . . . . . . . . . 2 . 6 . 6 . 8 . 2 . 6 . . . . 8 . 6 . . . . 6 . 4 . 7 . . 2 9 . . 4 . . Load Schematic 34 | . . . . . . . . . 1 . 3 . 2 . 4 . 1 . 3 . . . . 3 . 3 . . . . 3 . 2 . 2 . . 1 4 . . 2 . . Build 42 | . . . . . . . . . 1 . 3 . 4 . 4 . 1 . 3 . . . . 5 . 3 . . . . 3 . 2 . 5 . . 1 5 . . 2 . . Repair Station Hacks 85 | . . . . . . . . . . . . . 2 . . . 4 . 6 . . . . 6 . 6 . . . . 15 . 8 . 6 6 . 4 8 . . 12 2 . Scan Component 45 | . . . . . . . . . . . . . 1 . . . 2 . 3 . . . . 4 . 3 . . . . 8 . 4 . 3 3 . 2 4 . . 6 2 . Repair 40 | . . . . . . . . . . . . . 1 . . . 2 . 3 . . . . 2 . 3 . . . . 7 . 4 . 3 3 . 2 4 . . 6 . . Recycling Unit Hacks 25 | . 1 . . . . . . . 1 . . . 1 . . . . . 2 . . . . 1 . 2 . . . . 4 . 2 . 4 . . 2 . . . 4 1 . Process 1 | . . . . . . . . . . . . . . . . . . . . . . . . . . . . . . . 1 . . . . . . . . . . . . . Retrieve Matter 1 | . . . . . . . . . . . . . . . . . . . . . . . . . . . . . . . 1 . . . . . . . . . . . . . Retrieve Components 23 | . 1 . . . . . . . 1 . . . 1 . . . . . 2 . . . . 1 . 2 . . . . 2 . 2 . 4 . . 2 . . . 4 1 . Scanalyzer 21 | . . . . . . . 3 . . . . . 2 . 3 . . . . . . . . . . 3 . . . . . . 2 . 2 . . 2 . 1 . 3 . . Insert Component 12 | . . . . . . . 1 . . . . . 1 . 1 . . . . . . . . . . 1 . . . . . . 1 . 2 . . 1 . 1 . 3 . . Analyze 9 | . . . . . . . 2 . . . . . 1 . 2 . . . . . . . . . . 2 . . . . . . 1 . . . . 1 . . . . . . Garrison Access Hacks 70 | . . . . . . . 1 . 2 . 3 . 4 . 1 . 4 . 5 . . . . 2 . 7 . . . . 8 . 6 . 6 2 . 6 2 2 . 9 . . Unlock Access 7 | . . . . . . . 1 . . . 1 . 1 . . . 1 . . . . . . . . . . . . . . . 1 . . 1 . . . 1 . . . . Seal Access 32 | . . . . . . . . . 2 . 2 . 2 . 1 . 2 . 2 . . . . 1 . 4 . . . . 3 . 2 . 3 . . 3 1 . . 4 . . Coupler Status 31 | . . . . . . . . . . . . . 1 . . . 1 . 3 . . . . 1 . 3 . . . . 5 . 3 . 3 1 . 3 1 1 . 5 . . Unauthorized Hacks 576 | . 2 . 8 . . . 8 . 18 . 27 . 32 . 41 . 26 . 24 . . . . 20 . 26 24 7 . 36 33 . 34 . 20 34 . 24 24 36 . 41 31 . Terminals 243 | . 1 . 4 . . . 3 . 7 . 12 . 16 . 16 . 13 . 11 . . . . 7 . 13 11 3 . 16 14 . 14 . 8 11 . 10 8 18 . 18 9 . Track 92 | . 1 . 1 . . . 2 . 1 . 3 . 3 . 1 . 7 . 3 . . . . 2 . 6 2 2 . 6 6 . 6 . 3 5 . 4 3 10 . 9 6 . Assimilate 63 | . . . . . . . . . 3 . 5 . 6 . 10 . 2 . 4 . . . . . . 3 2 . . 3 3 . 4 . 1 2 . 3 2 4 . 6 . . Botnet 63 | . . . 3 . . . . . 3 . 3 . 5 . 3 . 3 . 3 . . . . 4 . 3 3 1 . 3 3 . 3 . 3 3 . 2 2 4 . 3 3 . Detonate 3 | . . . . . . . . . . . . . . . . . . . . . . . . . . . . . . 3 . . . . . . . . . . . . . . Disrupt 6 | . . . . . . . . . . . . . 1 . 1 . . . . . . . . . . . 3 . . . . . . . . . . . 1 . . . . . Operators 16 | . . . . . . . 1 . . . 1 . 1 . 1 . 1 . 1 . . . . 1 . 1 1 . . 1 2 . 1 . 1 1 . 1 . . . . . . Fabricators 8 | . . . . . . . . . . . 1 . . . 2 . . . . . . . . 1 . . . . . . 1 . 1 . . . . . 2 . . . . . Report 5 | . . . . . . . . . . . . . . . 1 . . . . . . . . 1 . . . . . . 1 . 1 . . . . . 1 . . . . . Prioritize 1 | . . . . . . . . . . . . . . . . . . . . . . . . . . . . . . . . . . . . . . . 1 . . . . . Haulers 2 | . . . . . . . . . . . 1 . . . 1 . . . . . . . . . . . . . . . . . . . . . . . . . . . . . Repair Stations . | . . . . . . . . . . . . . . . . . . . . . . . . . . . . . . . . . . . . . . . . . . . . . Recycling Units 1 | . . . . . . . . . . . . . . . . . . . . . . . . . . . . . . . . . . . . . . . . . . . 1 . Reject 1 | . . . . . . . . . . . . . . . . . . . . . . . . . . . . . . . . . . . . . . . . . . . 1 . Scanalyzers 3 | . . . . . . . . . 1 . . . . . . . . . . . . . . . . . . . . . . . . . 1 1 . . . . . . . . Researchers 1 | . . . . . . . . . . . . . . . . . . . . . . . . . . . . . . . . . . . . 1 . . . . . . . . Extract 2 | . . . . . . . . . 1 . . . . . . . . . . . . . . . . . . . . . . . . . 1 . . . . . . . . . Garrison Access 6 | . . . . . . . . . . . . . . . . . . . 1 . . . . . . . . . . . 1 . . . . 4 . . . . . . . . Broadcast 1 | . . . . . . . . . . . . . . . . . . . . . . . . . . . . . . . . . . . . 1 . . . . . . . . Redirect 1 | . . . . . . . . . . . . . . . . . . . . . . . . . . . . . . . . . . . . 1 . . . . . . . . Intercept 1 | . . . . . . . . . . . . . . . . . . . . . . . . . . . . . . . . . . . . 1 . . . . . . . . Watchers 1 | . . . . . . . . . . . . . . . . . . . . . . . . . . . . . . . . . . . . 1 . . . . . . . . Eject 2 | . . . . . . . . . . . . . . . . . . . 1 . . . . . . . . . . . 1 . . . . . . . . . . . . . Data Cores Recovered 1 | . . . . . . . . . . . . . . . . . . . . . . . . . . . . . . . . . . . . . . . . . . . 1 . Used 1 | . . . . . . . . . . . . . . . . . . . . . . . . . . . . . . . . . . . . . . . . . . . 1 . Hacking Detections 284 | . 5 . 3 . . . 6 . 13 . 10 . 18 . 12 . 8 . 17 1 . . . 17 . 25 8 2 . 12 15 . 15 . 18 8 . 11 10 11 . 28 11 . Full Trace Events 26 | . 1 . 2 . . . . . 5 . . . 3 . 1 . . . 1 . . . . 2 . 1 . . . . 3 . 1 . 3 . . 2 . . . . 1 . Feedback Events 2 | . . . . . . . . . . . . . . . . . . . . . . . . 1 . . . . . . . . . . . . . 1 . . . . . . Corruption 1 | . . . . . . . . . . . . . . . . . . . . . . . . . . . . . . . . . . . . . . 1 . . . . . . Hackware Fried 1 | . . . . . . . . . . . . . . . . . . . . . . . . 1 . . . . . . . . . . . . . . . . . . . . Feedback Blocked . | . . . . . . . . . . . . . . . . . . . . . . . . . . . . . . . . . . . . . . . . . . . . . Robot Schematics Acquired 8 | . . . . . . . . . . . . . . . . . . . . . . 7 . . . . . . . . 1 . . . . . . . . . . . . . Robots Built 1 | . . . . . . . . . . . . . . . . . . . . . . . . . . . . . . . 1 . . . . . . . . . . . . . Matter 384 | . . . . . . . . . . . . . . . . . . . . . . . . . . . . . . . 384 . . . . . . . . . . . . . Time 68 | . . . . . . . . . . . . . . . . . . . . . . . . . . . . . . . 68 . . . . . . . . . . . . . Total Robot Build Rating 8 | . . . . . . . . . . . . . . . . . . . . . . . . . . . . . . . 8 . . . . . . . . . . . . . Part Schematics Acquired 64 | . . . 2 . . . 1 . 7 . 1 . 1 . 4 . 2 . 4 . . 5 . . . 4 . . . . . . 3 . 3 25 . 1 1 . . . . . Parts Built 47 | . . . . . . . . . 2 . 3 . 3 . 4 . 1 . 5 . . . . 7 . 3 . . . . 3 . 3 . 6 . . 1 4 . . 2 . . Matter 10437 | . . . . . . . . . 212 . 636 . 636 . 621 . 318 . 731 . . . . 1104 . 793 . . . . 519 . 662 . 1946 . . 417 1272 . . 570 . . Time 2842 | . . . . . . . . . 53 . 247 . 159 . 218 . 56 . 187 . . . . 381 . 207 . . . . 89 . 343 . 342 . . 222 238 . . 100 . . Total Part Build Rating 309 | . . . . . . . . . 12 . 18 . 18 . 20 . 6 . 31 . . . . 46 . 16 . . . . 19 . 26 . 54 . . 9 24 . . 10 . . Parts Repaired 40 | . . . . . . . . . . . . . 1 . . . 2 . 3 . . . . 2 . 3 . . . . 7 . 4 . 3 3 . 2 4 . . 6 . . Time 1856 | . . . . . . . . . . . . . 88 . . . 59 . 149 . . . . 84 . 256 . . . . 380 . 231 . 120 79 . 94 130 . . 186 . . Parts Recycled . | . . . . . . . . . . . . . . . . . . . . . . . . . . . . . . . . . . . . . . . . . . . . . Recycled Matter 219 | . . . . . . . . . . . . . . . . . . . . . . . . . . . . . . . 219 . . . . . . . . . . . . . Retrieved Matter 219 | . . . . . . . . . . . . . . . . . . . . . . . . . . . . . . . 219 . . . . . . . . . . . . . Retrieved Components 104 | . 4 . . . . . . . 10 . . . 10 . . . . . 2 . . . . . . 17 . . . . 11 . 4 . 12 . . 10 . . . 14 10 . Parts Scanalyzed 6 | . . . . . . . 1 . . . . . 1 . 1 . . . . . . . . . . 1 . . . . . . 1 . . . . 1 . . . . . . Part Schematics Acquired 6 | . . . . . . . 1 . . . . . 1 . 1 . . . . . . . . . . 1 . . . . . . 1 . . . . 1 . . . . . . Parts Damaged 2 | . . . . . . . . . . . . . 1 . 1 . . . . . . . . . . . . . . . . . . . . . . . . . . . . . Bothacking | -11 -10 -10 -9 -9 -9 -8 -8 -8 -7 -7 -7 -7 -7 -7 -6 -6 -6 -6 -6 -6 -6 -6 -5 -5 -5 -5 -5 -5 -5 -5 -4 -4 -4 -4 -3 -3 -3 -2 -2 -2 -2 -1 -1 -1 ------------ Run | Scr Mat Min Mat Min Exi Min Mat Gar Fac Was Fac Gar Fac Gar Fac Was Fac Gar Fac Low Low Dat Pro Fac Was Fac Ext Cet Arc Hub Fac Was Fac Gar Res Qua Gar Res Tes Sec Gar Acc Com Ac0 Used RIF Installer 7 | . . . . . . . . 1 . . . 1 . 1 . . . 1 . . . . . . . . . . . . . . . 1 . . 1 . . . 1 . . . Coupler Efficiency 1 | . . . . . . . . . . . . . . 1 . . . . . . . . . . . . . . . . . . . . . . . . . . . . . . Patrol Navigation 1 | . . . . . . . . . . . . . . . . . . 1 . . . . . . . . . . . . . . . . . . . . . . . . . . Structural Interface 1 | . . . . . . . . . . . . . . . . . . . . . . . . . . . . . . . . . . . . . . . . . 1 . . . Program Shield 1 | . . . . . . . . . . . . 1 . . . . . . . . . . . . . . . . . . . . . . . . . . . . . . . . Autooverride 1 | . . . . . . . . . . . . . . . . . . . . . . . . . . . . . . . . . . 1 . . . . . . . . . . Autoassimilate 1 | . . . . . . . . . . . . . . . . . . . . . . . . . . . . . . . . . . . . . 1 . . . . . . . Robots Hacked 34 | . . . . . . . . . . . . . . . . . . . . . . 1 . 2 . 2 . 1 3 . 5 . 2 . 1 2 4 1 4 3 . . 3 . Non-combat 16 | . . . . . . . . . . . . . . . . . . . . . . . . 2 . 1 . . . . 5 . 2 . 1 1 . 1 2 . . . 1 . Combat 18 | . . . . . . . . . . . . . . . . . . . . . . 1 . . . 1 . 1 3 . . . . . . 1 4 . 2 3 . . 2 . Autooverrided 1 | . . . . . . . . . . . . . . . . . . . . . . . . . . . . . . . . . . . . . 1 . . . . . . . Robot Hacks Applied 47 | . . . . . . . . . . . . . . . . . . . . . . 3 . 2 . 2 . 1 3 . 6 . 2 . 4 8 3 1 4 3 . . 5 . parse_system 11 | . . . . . . . . . . . . . . . . . . . . . . 3 . . . 1 . 1 3 . . . . . . 1 . . . . . . 2 . find_chute 4 | . . . . . . . . . . . . . . . . . . . . . . . . 2 . . . . . . 2 . . . . . . . . . . . . . ignore_repairs 5 | . . . . . . . . . . . . . . . . . . . . . . . . . . 1 . . . . 4 . . . . . . . . . . . . . find_fabricator 1 | . . . . . . . . . . . . . . . . . . . . . . . . . . . . . . . . . . . . . . 1 . . . . . . find_recycling 1 | . . . . . . . . . . . . . . . . . . . . . . . . . . . . . . . . . . . . . . . . . . . 1 . ignore_parts 3 | . . . . . . . . . . . . . . . . . . . . . . . . . . . . . . . . . . . . . . . 1 . . . 2 . purge_threat 3 | . . . . . . . . . . . . . . . . . . . . . . . . . . . . . . . . . . . 3 . . . . . . . . . block_reporting 2 | . . . . . . . . . . . . . . . . . . . . . . . . . . . . . . . . . . . 1 . . . 1 . . . . . map_route 3 | . . . . . . . . . . . . . . . . . . . . . . . . . . . . . . . . . 2 . . 1 . . . . . . . . find_scanalyzer 1 | . . . . . . . . . . . . . . . . . . . . . . . . . . . . . . . . . . . . 1 . . . . . . . . disable_scanner 3 | . . . . . . . . . . . . . . . . . . . . . . . . . . . . . . . . . . . . . . . 1 2 . . . . locate_prototypes 3 | . . . . . . . . . . . . . . . . . . . . . . . . . . . . . . . . . . . . 1 . . 1 1 . . . . report_schematics 2 | . . . . . . . . . . . . . . . . . . . . . . . . . . . . . . . . . . . . 2 . . . . . . . . report_analyses 2 | . . . . . . . . . . . . . . . . . . . . . . . . . . . . . . . . . . . . 2 . . . . . . . . overwrite_iff 3 | . . . . . . . . . . . . . . . . . . . . . . . . . . . . . . . . . . . . . 3 . . . . . . . Manual 1 | . . . . . . . . . . . . . . . . . . . . . . . . . . . . . . . . . . . . . . . . . . . 1 . Relay Couplers Released 50 | . . . . . . . . 4 . . . 8 . 5 . . . 5 4 . . . . . . . . . . . 4 . . 9 . . 4 . . . 7 . . . Ejected 8 | . . . . . . . . . . . . . . . . . . . 4 . . . . . . . . . . . 4 . . . . . . . . . . . . . Machine Destruction 42 | . . . . . . . . 4 . . . 8 . 5 . . . 5 . . . . . . . . . . . . . . . 9 . . 4 . . . 7 . . . Attached 8 | . . . . . . . . . . . . 1 . . . . . 1 . . . . . . . . . . . . . . 1 . 1 1 2 . 1 . . . . . Robots Rewired 4 | . . . . . . . . . . . . . . . . . . . . . . . . . . . 4 . . . . . . . . . . . . . . . . . Allies Hacked 6 | . . . . . . . . . . . 1 . . . . . . . . . . . . . . 1 . . . 1 2 . . . . . . . . . . 1 . . Hacks Repelled . | . . . . . . . . . . . . . . . . . . . . . . . . . . . . . . . . . . . . . . . . . . . . . Allies | -11 -10 -10 -9 -9 -9 -8 -8 -8 -7 -7 -7 -7 -7 -7 -6 -6 -6 -6 -6 -6 -6 -6 -5 -5 -5 -5 -5 -5 -5 -5 -4 -4 -4 -4 -3 -3 -3 -2 -2 -2 -2 -1 -1 -1 -------- Run | Scr Mat Min Mat Min Exi Min Mat Gar Fac Was Fac Gar Fac Gar Fac Was Fac Gar Fac Low Low Dat Pro Fac Was Fac Ext Cet Arc Hub Fac Was Fac Gar Res Qua Gar Res Tes Sec Gar Acc Com Ac0 Total Allies 60 | . . . . 2 . . . . 3 . 3 . 4 . 3 . 1 . 3 . . . . . . 3 7 5 3 2 3 . 3 . . 1 4 2 2 1 . 5 . . Largest Group 9 | . . . . 2 . . . . 1 . 2 1 3 . 3 2 3 1 3 . . . . . . 3 7 9 8 2 1 . 2 2 2 1 1 2 2 1 . 2 . . Highest-Rated Group 790 | . . . . 44 . . . . 10 . 36 26 46 . 46 36 62 26 62 . . . . . . 78 326 656 790 36 45 . 70 70 70 10 108 70 54 26 . 88 . . Highest-Rated Ally 156 | . . . . 31 . . . . 10 . 26 26 26 . 26 26 26 26 26 . . . . . . 26 156 156 122 26 45 . 44 44 44 10 108 44 44 26 . 44 . . Total Orders 215 | . . . . . . . . . 2 . 7 3 18 . 17 . 10 3 26 . . . . . . 18 7 8 13 19 12 . 16 5 7 . . 15 4 1 . 4 . . STAY 32 | . . . . . . . . . 1 . 3 1 3 . 5 . . 1 4 . . . . . . 2 1 1 . 2 2 . 2 1 . . . 2 . 1 . . . . GOTO 102 | . . . . . . . . . . . 1 1 8 . 3 . 6 1 10 . . . . . . 7 3 5 12 13 6 . 9 2 4 . . 7 2 . . 2 . . ROAM 1 | . . . . . . . . . . . . . . . . . . . . . . . . . . . . . . . 1 . . . . . . . . . . . . . FOLLOW 77 | . . . . . . . . . 1 . 3 1 7 . 9 . 4 1 12 . . . . . . 8 3 2 . 3 3 . 5 2 3 . . 6 2 . . 2 . . RETURN 3 | . . . . . . . . . . . . . . . . . . . . . . . . . . 1 . . 1 1 . . . . . . . . . . . . . . Ally Attacks 226 | . . . . 1 . . . . . . . . . . . . . . . . . . . . . . 86 55 48 23 5 . . . . . 8 . . . . . . . Total Damage 5296 | . . . . . . . . . . . . . . . . . . . . . . . . . . . 1743 1116 1674 481 . . . . . . 282 . . . . . . . Kills 40 | . . . . . . . . . . . . . . . . . . . . . . . . . . . 13 13 10 3 . . . . . . 1 . . . . . . . Allies Corrupted 1 | . . . . . . . . . . . . . . . . . . . . . . . . . . . . . . . 1 . . . . . . . . . . . . . Allies Melted . | . . . . . . . . . . . . . . . . . . . . . . . . . . . . . . . . . . . . . . . . . . . . . Intel | -11 -10 -10 -9 -9 -9 -8 -8 -8 -7 -7 -7 -7 -7 -7 -6 -6 -6 -6 -6 -6 -6 -6 -5 -5 -5 -5 -5 -5 -5 -5 -4 -4 -4 -4 -3 -3 -3 -2 -2 -2 -2 -1 -1 -1 ------- Run | Scr Mat Min Mat Min Exi Min Mat Gar Fac Was Fac Gar Fac Gar Fac Was Fac Gar Fac Low Low Dat Pro Fac Was Fac Ext Cet Arc Hub Fac Was Fac Gar Res Qua Gar Res Tes Sec Gar Acc Com Ac0 Robot Analysis Total 7 | . . . . . . . . . . . . . . . 1 . . . . . . . . . . . . . . . . . 1 . 1 . . . . . . 4 . . Derelict Logs Recovered 5 | . . 1 . 2 . . . . . . . . . . . . . . . 1 1 . . . . . . . . . . . . . . . . . . . . . . . Drone Launches 9 | . . . . . . . . . . . . . . . . . . . . . . . . . . 2 . 1 2 4 . . . . . . . . . . . . . . Drone Recoveries 4 | . . . . . . . . . . . . . . . . . . . . . . . . . . 2 . . 1 1 . . . . . . . . . . . . . . Exploration | -11 -10 -10 -9 -9 -9 -8 -8 -8 -7 -7 -7 -7 -7 -7 -6 -6 -6 -6 -6 -6 -6 -6 -5 -5 -5 -5 -5 -5 -5 -5 -4 -4 -4 -4 -3 -3 -3 -2 -2 -2 -2 -1 -1 -1 ------------- Run | Scr Mat Min Mat Min Exi Min Mat Gar Fac Was Fac Gar Fac Gar Fac Was Fac Gar Fac Low Low Dat Pro Fac Was Fac Ext Cet Arc Hub Fac Was Fac Gar Res Qua Gar Res Tes Sec Gar Acc Com Ac0 Turns Passed 61484 | 210 1309 1233 720 802 386 664 2804 526 1946 92 1296 376 2039 239 1460 106 1758 244 2553 277 982 226 176 2222 116 4043 960 445 171 1302 3731 111 1790 950 4069 984 697 2549 1917 2500 718 3932 5142 711 Spaces Moved 81521 | 132 781 674 310 420 293 473 1169 235 3361 255 2813 545 4392 310 2710 221 2765 402 3254 423 1031 202 180 2701 300 6911 812 213 70 1236 5447 254 2736 1239 6018 1518 715 3371 2199 2867 1020 6318 7652 573 Core 9 | 3 . . . . . . . . . . . . . . 5 . . . . . . . 1 . . . . . . . . . . . . . . . . . . . . . Treads 3337 | . 475 674 274 264 . . 1022 235 203 . . . . . . . . . . . . . . . . . . 185 5 . . . . . . . . . . . . . . . Legs . | . . . . . . . . . . . . . . . . . . . . . . . . . . . . . . . . . . . . . . . . . . . . . Wheels 1540 | 129 306 . 36 156 293 473 147 . . . . . . . . . . . . . . . . . . . . . . . . . . . . . . . . . . . . . Hover 62356 | . . . . . . . . . . . . . . . . 120 2765 402 3254 423 1031 202 179 2701 300 6911 812 28 65 1236 5447 254 2736 1239 6018 1518 715 3371 2199 2867 1020 6318 7652 573 Flight 14279 | . . . . . . . . . 3158 255 2813 545 4392 310 2705 101 . . . . . . . . . . . . . . . . . . . . . . . . . . . . Fastest Speed 29 | 50 90 180 120 130 130 130 130 200 29 29 29 29 29 29 29 29 36 45 45 45 58 58 65 33 33 33 53 60 105 52 36 36 32 40 38 38 40 36 42 44 36 36 36 44 Average Speed 48 | 89 149 180 184 174 130 130 191 200 38 29 29 29 29 29 29 33 38 45 45 45 58 67 71 51 33 40 63 166 111 62 43 36 35 45 42 38 51 42 46 46 39 37 44 45 Slowest Speed 750 | 100 180 180 200 200 130 130 240 200 180 29 29 97 29 29 150 116 116 45 121 45 220 220 750 150 33 125 125 180 180 125 117 36 40 130 256 122 120 132 152 144 144 144 144 148 Overloaded Moves 72 | . . . . . . . . . . . . . . . . . . . . . . . . . . . . . . 70 . . . . . . . 2 . . . . . . Propulsion Burnouts . | . . . . . . . . . . . . . . . . . . . . . . . . . . . . . . . . . . . . . . . . . . . . . Robots Hopped 57 | . . . . . . . . . 23 . 4 . 13 . 17 . . . . . . . . . . . . . . . . . . . . . . . . . . . . . Cave-ins Triggered 1 | . . . . . . . . . . . . . . . . . . . . . . . . . . . . . . . . . . . . . . . . . . . 1 . Teleports 3 | . . . . . . . . . . . . . . . . . . . . . . . . . . . . . . . . . . . . . . 1 . . . . 1 1 Exploration Rate (%) 66 | 7 83 99 34 70 66 80 78 43 66 88 58 87 77 43 44 80 51 41 66 64 86 78 39 40 87 81 69 73 99 91 68 94 43 85 67 91 41 49 82 75 55 75 82 25 Regions Visited 44 Branch Regions 17 Pre-discovered Areas 3 | . . . . 1 1 . . . . . . . . . . . . . . . . 1 . . . . . . . . . . . . . . . . . . . . . . Known Exits Taken 21 | . . . . . . . 1 . . . 1 . 1 . . . 1 . 1 1 1 1 1 . . 1 1 1 1 1 . . 1 . 1 1 . 1 1 1 . 1 . . Unknown Exits Taken 8 | 1 1 1 1 1 1 1 . . . . . . . . . . . . . . . . . . . . . . . . . . . . . . . . . . . . 1 . Scrap Searched 10 | . . 1 . 1 . 2 . . . . . . . . . . . . . 2 2 . 2 . . . . . . . . . . . . . . . . . . . . . Spaces Dug 1744 | . . . 7 14 . . 104 20 81 . 86 3 109 1 67 . 78 . 83 17 43 . 2 99 . 177 4 . . 47 123 . 75 . 127 31 . 83 37 52 3 128 27 16 Terrain Destroyed 4813 | . 82 . 22 115 . 37 325 35 111 47 98 125 157 29 67 . 78 123 102 51 131 . 2 237 . 263 61 16 . 370 255 . 159 140 397 68 159 295 37 125 9 128 189 168 Melee 1611 | . . . . . . . 57 . 81 . 86 . 109 1 67 . 78 . 83 17 43 . 2 99 . 177 4 . . 47 123 . 75 . 127 27 . 83 30 44 . 128 23 . Projectile 210 | . . . . . . . 4 . . . . . . . . . . . 1 . . . . . . . . . . 1 . . . . 1 6 . . 7 11 5 . 25 149 AOE 2992 | . 82 . 22 115 . 37 264 35 30 47 12 125 48 28 . . . 123 18 34 88 . . 138 . 86 57 16 . 322 132 . 84 140 269 35 159 212 . 70 4 . 141 19 Actions | -11 -10 -10 -9 -9 -9 -8 -8 -8 -7 -7 -7 -7 -7 -7 -6 -6 -6 -6 -6 -6 -6 -6 -5 -5 -5 -5 -5 -5 -5 -5 -4 -4 -4 -4 -3 -3 -3 -2 -2 -2 -2 -1 -1 -1 --------- Run | Scr Mat Min Mat Min Exi Min Mat Gar Fac Was Fac Gar Fac Gar Fac Was Fac Gar Fac Low Low Dat Pro Fac Was Fac Ext Cet Arc Hub Fac Was Fac Gar Res Qua Gar Res Tes Sec Gar Acc Com Ac0 Total 97983 | 180 873 688 404 458 300 511 1490 272 3836 266 3131 736 4948 425 3198 253 3257 438 4127 472 1270 281 210 3312 316 7840 1193 279 159 1613 6478 273 3397 1526 7128 1849 972 4230 2993 3703 1262 7582 8977 877 Wait 9234 | . 7 6 18 6 . 23 63 15 272 2 203 141 405 59 378 25 326 4 700 6 96 19 3 386 . 582 274 7 76 204 688 16 535 99 602 228 51 603 550 357 31 849 308 11 Move 81376 | 131 780 673 309 419 292 472 1169 233 3322 254 2806 544 4367 308 2676 220 2765 400 3253 422 1030 201 179 2701 299 6910 811 212 69 1235 5447 253 2735 1238 6017 1518 714 3370 2198 2867 1019 6317 7649 572 Hop 48 | . . . . . . . . . 16 . 3 . 12 . 17 . . . . . . . . . . . . . . . . . . . . . . . . . . . . . Pick Up 644 | 4 19 1 14 . 4 2 18 . 15 . 1 1 6 1 7 3 9 . 12 4 11 2 1 14 . 19 . 6 1 4 22 2 6 15 30 12 32 14 55 37 35 71 125 9 Fast Attach 248 | 7 . . 2 1 . . 7 . 11 1 1 1 6 . 4 . 5 1 1 . 13 5 7 12 8 2 3 1 . 4 6 . 4 3 12 . 3 1 17 25 10 10 31 23 Attach 255 | . . . 5 4 . 2 6 . 7 . . 2 2 1 3 2 1 . . 5 3 9 1 5 . 4 . 2 2 7 9 . 1 7 15 7 7 5 19 18 6 15 40 33 Detach 195 | . . . 3 . 2 . 5 . 7 1 . 1 2 . 2 . . . 1 3 2 11 1 4 1 2 1 4 . 6 3 . 2 7 14 1 4 1 15 16 5 8 33 27 Swap 1041 | . 11 . 14 6 . 6 37 3 16 4 11 9 10 4 8 1 9 5 20 3 12 6 2 33 . 29 31 25 7 35 52 . 13 41 93 17 36 66 35 93 32 35 136 35 Drop 642 | . 8 1 7 . 2 . 14 . 45 . 3 1 10 . 10 2 8 . 7 3 17 11 6 10 8 10 2 3 1 15 15 2 3 15 31 4 20 15 30 35 33 52 171 12 Fire 1583 | 38 48 7 32 22 . 4 103 17 17 4 3 13 5 13 . . 9 13 8 2 12 13 1 24 . 10 30 19 3 17 49 . 7 46 44 29 42 32 32 123 77 76 385 154 Melee 2334 | . . . . . . 2 68 . 106 . 100 5 123 10 93 . 113 4 119 24 74 4 9 120 . 218 15 . . 84 185 . 91 22 210 33 10 123 42 132 2 149 43 1 Ram . | . . . . . . . . . . . . . . . . . . . . . . . . . . . . . . . . . . . . . . . . . . . . . Kick . | . . . . . . . . . . . . . . . . . . . . . . . . . . . . . . . . . . . . . . . . . . . . . Crush . | . . . . . . . . . . . . . . . . . . . . . . . . . . . . . . . . . . . . . . . . . . . . . Escape Stasis 248 | . . . . . . . . 4 . . . 18 . 29 . . . . . . . . . 3 . . 26 . . . . . . 33 18 . 53 . . . 12 . 52 . Rewire 4 | . . . . . . . . . . . . . . . . . . . . . . . . . . . . . . . . . . . . . . . . . . . 4 . Trap 128 | . . . . . . . . . 2 . . . . . . . 12 11 6 . . . . . . 53 . . . . 2 . . . 42 . . . . . . . . . Miscellaneous 3 | . . . . . . . . . . . . . . . . . . . . . . . . . . 1 . . . 2 . . . . . . . . . . . . . . Route ------- -11/Scrapyard -10/Materials (discovered 3 exits: *Mat x2 / [*Min]) -10/Mines (discovered 2 exits: *Mat x2) -9/Materials -9/Mines (discovered 3 exits: *Mat x2 / *Exi) -9/Exiles -8/Mines (discovered 2 exits: *Mat x2) -8/Materials (discovered 4 exits: *Fac x3 / Gar) -8/Garrison -7/Factory (discovered 4 exits: *Fac / [*Sto] / *Low x2) -7/Waste -7/Factory (discovered 3 exits: *Fac / [*Sto] / Gar) -7/Garrison (discovered 3 exits: *Fac x3) -7/Factory (discovered 7 exits: *Fac x3 / [*Sto x2] / *Low / Gar) -7/Garrison -6/Factory -6/Waste -6/Factory (discovered 4 exits: *Fac / *Low x2 / Gar) -6/Garrison -6/Factory (discovered 4 exits: *Fac x2 / *Low x2) -6/Lower Caves -6/Lower Caves (discovered 2 exits: *Fac / *Dat) -6/Data Miner -5/Proximity Caves -5/Factory (discovered 3 exits: *Fac / *Upp / *Ext) -5/Waste -5/Factory (discovered 7 exits: *Fac x3 / *Upp x2 / *Ext x2) -5/Extension (discovered 2 exits: *Fac / *Cet) -5/Cetus (discovered 2 exits: *Fac / *Arc) -5/Archives (discovered 3 exits: *Fac / *Hub x2) -5/Hub_04(d) (discovered 4 exits: *Fac x4) -4/Factory (discovered 4 exits: *Res / Upp x2 / Arm) -4/Waste -4/Factory (discovered 3 exits: *Res x2 / Gar) -4/Garrison (discovered 3 exits: *Res x3) -3/Research (discovered 3 exits: *Res x2 / *Qua) -3/Quarantine (discovered 2 exits: *Res / Gar) -3/Garrison -2/Research (discovered 3 exits: *Acc / *Tes x2) -2/Testing (discovered 2 exits: *Acc / *Sec) -2/Section 7 (discovered 2 exits: *Acc / Gar) -2/Garrison (discovered 2 exits: *Acc x2) -1/Access -1/Command (discovered 3 exits: [*Sur x2] / [*Ac0]) -1/Access_0 Near Former Tau Ceti IV History --------- Turn | Location | Event 16 | -11/Scrapyard | Discovered new exit (range 15) 211 | -11/Scrapyard | Entered Materials 289 | -10/Materials | Discovered new exit (range 13) 322 | -10/Materials | Build established: Mutant 772 | -10/Materials | Build established: Hauler-Mutant 884 | -10/Materials | Discovered new exit (range 16) 1319 | -10/Materials | Discovered new exit (range 13) 1520 | -10/Materials | Entered Mines 1572 | -10/Mines | Met a Derelict bent on vengeance 1803 | -10/Mines | Learned Materials terminal intel 1830 | -10/Mines | Discovered new exit (range 3) 2237 | -10/Mines | Discovered new exit (range 7) 2753 | -10/Mines | Entered Materials 2753 | -9/Materials | Evolved 2 slots: Utility x2 2754 | -9/Materials | Loaded intel: 11 terminal locations 2822 | -9/Materials | Central database locked down 3455 | -9/Materials | Discovered new exit (range 7) 3473 | -9/Materials | Entered Mines 3493 | -9/Mines | Learned 2 Materials zone layouts 3493 | -9/Mines | Discovered new exit (range 10) 3699 | -9/Mines | Discovered new exit (range 2) 3761 | -9/Mines | Learned location of Recycling (-7) 3915 | -9/Mines | Deemed a non-threat by the Exiles lab entrance 3915 | -9/Mines | Discovered new exit (range 5) 3986 | -9/Mines | Assembled infested the area 4068 | -9/Mines | Lost 4 parts (1p1u2w) 4078 | -9/Mines | Destroyed 12 combat bots 4275 | -9/Mines | Entered Exiles 4307 | -9/Exiles | Met 8R-AWN 4330 | -9/Exiles | Met EX-HEX 4409 | -9/Exiles | Met EX-BIN 4432 | -9/Exiles | Aligned with FarCom system 4434 | -9/Exiles | Given EX-Vault access code 4499 | -9/Exiles | Opened EX-Vault 4509 | -9/Exiles | Found Trap Reconfigurator 4515 | -9/Exiles | Found Latent Energy Streamer 4523 | -9/Exiles | Found Potential Leg 4525 | -9/Exiles | Found Potential Leg 4551 | -9/Exiles | Warned to stay clear of 0b10 Research branches 4592 | -9/Exiles | Met EX-DEC 4599 | -9/Exiles | Learned location of Zion (-7) 4651 | -9/Exiles | Discovered new exit (range 10) 4661 | -9/Exiles | Stole three prototypes: Potential Leg, Trap Reconfigurator, Latent Energy Streamer 4661 | -9/Exiles | Entered Mines 4849 | -8/Mines | Discovered new exit (range 11) 5318 | -8/Mines | Discovered new exit (range 6) 5325 | -8/Mines | Entered Materials 5325 | -8/Materials | Evolved 2 slots: Utility x2 5326 | -8/Materials | Identified exit to Factory 5683 | -8/Materials | Lost 3 parts (1n2w) 6652 | -8/Materials | Discovered exit to Factory (range 8) 7494 | -8/Materials | Discovered exit to Factory (range 14) 8129 | -8/Materials | Identified exit to Garrison 8129 | -8/Materials | Entered Garrison 8139 | -8/Garrison | Installed Relay Interface Framework 8266 | -8/Garrison | Triggered checkpoint 8304 | -8/Garrison | Garrison Relay disabled 8475 | -8/Garrison | Triggered checkpoint 8617 | -8/Garrison | Discovered exit to Factory (range 15) 8655 | -8/Garrison | Entered Factory 8655 | -7/Factory | Evolved 2 slots: Propulsion x1, Utility x1 8657 | -7/Factory | FarCom data flow suspended 9280 | -7/Factory | Discovered new exit (range 15) 9287 | -7/Factory | Identified exit to Lower Caves 9700 | -7/Factory | Build established: Scavenger-Scout 9807 | -7/Factory | Discovered new exit (range 12) 9848 | -7/Factory | Discovered new exit (range 15) 9938 | -7/Factory | Discovered exit to Lower Caves (range 16) 10419 | -7/Factory | Build established: Hacker-Sprinter 10440 | -7/Factory | Fabricated Mic. Fission Core (x2) 10444 | -7/Factory | Local fabrication network quarantined 10601 | -7/Factory | Sucked down chute 10601 | -7/Factory | Entered Waste 10601 | -7/Waste | The area was eerily silent 10651 | -7/Waste | Discovered new exit (range 16) 10660 | -7/Waste | A Compactor rumbled back to life 10660 | -7/Waste | Spotted C-40 Crusher 10680 | -7/Waste | Destroyed C-40 Crusher 10690 | -7/Waste | A Compactor rumbled back to life 10690 | -7/Waste | Spotted C-40 Crusher 10693 | -7/Waste | Identified exit to Factory 10693 | -7/Waste | Entered Factory 10845 | -7/Factory | Discovered new exit (range 13) 10945 | -7/Factory | Discovered new exit (range 8) 11320 | -7/Factory | Identified exit to Factory 11744 | -7/Factory | Fabricated Adv. Hacking Suite (x1) 11780 | -7/Factory | Local fabrication network quarantined 11805 | -7/Factory | Fabricated Adv. Hacking Suite? 11861 | -7/Factory | Fabricated Adv. Hacking Suite? 11985 | -7/Factory | Identified exit to Garrison 11989 | -7/Factory | Entered Garrison 11989 | -7/Garrison | Accompanied by 1 ally 11999 | -7/Garrison | Phase Generator disabled 12035 | -7/Garrison | Garrison Relay disabled 12057 | -7/Garrison | Triggered checkpoint 12093 | -7/Garrison | Triggered checkpoint 12153 | -7/Garrison | Discovered new exit (range 15) 12168 | -7/Garrison | Triggered checkpoint 12188 | -7/Garrison | Garrison Relay disabled 12291 | -7/Garrison | Discovered new exit (range 15) 12353 | -7/Garrison | Discovered new exit (range 15) 12362 | -7/Garrison | Identified exit to Factory 12364 | -7/Garrison | Expanded RIF knowledge: Program Shield 12365 | -7/Garrison | Entered Factory 12541 | -7/Factory | Discovered exit to Factory (range 12) 12745 | -7/Factory | Discovered exit to Factory (range 16) 12856 | -7/Factory | Core integrity fell below 50% 12926 | -7/Factory | Repaired Broken Imp. Cesium-ion Thruster 13125 | -7/Factory | Discovered exit to Factory (range 16) 13408 | -7/Factory | Discovered new exit (range 20) 13669 | -7/Factory | Fabricated Adv. Hacking Suite? 13837 | -7/Factory | Discovered exit to Lower Caves (range 7) 13937 | -7/Factory | Discovered new exit (range 16) 14130 | -7/Factory | Lost 3 parts (2u1w) 14233 | -7/Factory | Fabricated Adv. Hacking Suite? 14294 | -7/Factory | Fabricated Adv. Hacking Suite (x1) 14404 | -7/Factory | Identified exit to Garrison 14404 | -7/Factory | Entered Garrison 14406 | -7/Garrison | Expanded RIF knowledge: Coupler Efficiency 14416 | -7/Garrison | Triggered checkpoint 14468 | -7/Garrison | Triggered checkpoint 14567 | -7/Garrison | Triggered checkpoint 14640 | -7/Garrison | Discovered exit to Factory (range 10) 14643 | -7/Garrison | Entered Factory 14643 | -6/Factory | Evolved 2 slots: Utility x2 15269 | -6/Factory | Central database locked down 15390 | -6/Factory | Fabricated Exp. Sensor Array? 15447 | -6/Factory | Fabricated Lrg. Storage Unit? 15470 | -6/Factory | Fabricated Imp. Linear Gravjet? 15541 | -6/Factory | Local fabrication network quarantined 16031 | -6/Factory | Found Prototype Processor 16041 | -6/Factory | Identified Exp. Signal Interpreter 16043 | -6/Factory | First assault squad dispatched 16054 | -6/Factory | Found Exp. Signal Interpreter 16103 | -6/Factory | Manually triggered Chute Trap 16103 | -6/Factory | Sucked down chute 16103 | -6/Factory | Entered Waste 16103 | -6/Waste | The area was eerily silent 16110 | -6/Waste | 2 allies followed down the chute 16132 | -6/Waste | Discovered new exit (range 13) 16201 | -6/Waste | Identified exit to Factory 16209 | -6/Waste | Entered Factory 16209 | -6/Factory | Accompanied by 2 allies 16314 | -6/Factory | Discovered new exit (range 6) 16449 | -6/Factory | Build established: Hacker-Mutant 17018 | -6/Factory | Discovered new exit (range 3) 17019 | -6/Factory | Identified exit to Factory 17286 | -6/Factory | Discovered new exit (range 7) 17321 | -6/Factory | Identified exit to Lower Caves 17577 | -6/Factory | Central database locked down 17699 | -6/Factory | Fabricated Mni. Smartbomb Launcher? 17712 | -6/Factory | Local fabrication network quarantined 17817 | -6/Factory | Repaired Adv. Transmission Jammer 17845 | -6/Factory | Repaired Mic. Fission Core 17967 | -6/Factory | Identified exit to Garrison 17967 | -6/Factory | Entered Garrison 17967 | -6/Garrison | Accompanied by 1 ally 18034 | -6/Garrison | Triggered checkpoint 18099 | -6/Garrison | Discovered new exit (range 10) 18104 | -6/Garrison | Identified exit to Factory 18107 | -6/Garrison | Expanded RIF knowledge: Patrol Navigation 18117 | -6/Garrison | Triggered checkpoint 18211 | -6/Garrison | Entered Factory 18211 | -6/Factory | Accompanied by 1 ally 18502 | -6/Factory | Discovered exit to Lower Caves (range 14) 18558 | -6/Factory | Found Imp. Powered Armor 18890 | -6/Factory | Discovered exit to Factory (range 8) 18949 | -6/Factory | Repaired Adv. Transmission Jammer? 19026 | -6/Factory | Repaired Imp. Powered Armor 19161 | -6/Factory | Discovered exit to Lower Caves (range 4) 19472 | -6/Factory | Repaired Imp. Linear Gravjet 19477 | -6/Factory | Discovered exit to Factory (range 10) 20047 | -6/Factory | Fabricated System Restoration Module? 20083 | -6/Factory | Fabricated Exp. Utility Shielding? 20090 | -6/Factory | Fabricated Imp. Linear Gravjet? 20133 | -6/Factory | Local fabrication network quarantined 20764 | -6/Factory | Entered Lower Caves 20851 | -6/Lower Caves | Identified exit to Lower Caves 20876 | -6/Lower Caves | Spotted YU-7YT(f) 20876 | -6/Lower Caves | Spotted 2W-4Z0(f) 20877 | -6/Lower Caves | Encountered a Master Thief 20877 | -6/Lower Caves | Nova Cannon stolen by Master Thief 20879 | -6/Lower Caves | Encountered a Master Thief 20881 | -6/Lower Caves | Imp. Linear Gravjet stolen by Master Thief 20921 | -6/Lower Caves | Learned location of 1 exit from Lower Caves 20999 | -6/Lower Caves | Spotted B-75 Beast 21033 | -6/Lower Caves | Encountered a Warlord checkpoint 21041 | -6/Lower Caves | Entered another Lower Caves area 21044 | -6/Lower Caves | Imp. Linear Gravjet stolen by Master Thief 21064 | -6/Lower Caves | Encountered a Warlord checkpoint 21097 | -6/Lower Caves | Learned Factory emergency access door positions 21534 | -6/Lower Caves | Attracted the attention of an 0b10 checkpoint 21567 | -6/Lower Caves | Spotted 5P-13W(f) 21568 | -6/Lower Caves | Encountered a Master Thief 21575 | -6/Lower Caves | Spotted 91-V55(f) 21576 | -6/Lower Caves | Encountered a Master Thief 21588 | -6/Lower Caves | Latent Energy Streamer stolen by Master Thief 21600 | -6/Lower Caves | Adv. Transmission Jammer stolen by Master Thief 21897 | -6/Lower Caves | Spotted X3-729(f) 21898 | -6/Lower Caves | Encountered a Master Thief 21903 | -6/Lower Caves | Spotted NX-4XT(f) 21903 | -6/Lower Caves | Mic. Fission Core stolen by Master Thief 21904 | -6/Lower Caves | Encountered a Master Thief 21917 | -6/Lower Caves | Exp. Utility Shielding stolen by Master Thief 22018 | -6/Lower Caves | Discovered new exit (range 4) 22019 | -6/Lower Caves | Identified exit to Data Miner 22023 | -6/Lower Caves | Entered Data Miner 22023 | -6/Data Miner | Discovered new exit (range 6) 22026 | -6/Data Miner | Identified exit to Proximity Caves 22035 | -6/Data Miner | Met Data Miner 22047 | -6/Data Miner | Learned location of Section 7 (-2) 22047 | -6/Data Miner | Acquired the access code to Warlord's prototype stash 22055 | -6/Data Miner | Received God Mode back door access code from Data Miner 22120 | -6/Data Miner | Data Conduit disabled 22249 | -6/Data Miner | Entered Proximity Caves 22323 | -5/Proximity Caves | Found Alien Artifact 22360 | -5/Proximity Caves | Build established: Mutant 22371 | -5/Proximity Caves | Spotted 74-KO1(f) 22372 | -5/Proximity Caves | Encountered a Master Thief 22382 | -5/Proximity Caves | Imp. Energy Well stolen by Master Thief 22390 | -5/Proximity Caves | Identified Core Expander 22390 | -5/Proximity Caves | Installed Core Expander, added new Power slot 22419 | -5/Proximity Caves | Discovered exit to Factory (range 11) 22425 | -5/Proximity Caves | Entered Factory 22425 | -5/Factory | Evolved 2 slots: Propulsion x1, Utility x1 22469 | -5/Factory | Repaired Imp. Powered Armor 22595 | -5/Factory | Discovered new exit (range 21) 22612 | -5/Factory | Identified exit to Factory 22934 | -5/Factory | Build established: Hacker-Scout 23639 | -5/Factory | Fabricated Imp. Linear Gravjet? 23701 | -5/Factory | Fabricated Adv. Hacking Suite (x1) 23775 | -5/Factory | Discovered new exit (range 21) 23824 | -5/Factory | Fabricated Adv. Hacking Suite? 23916 | -5/Factory | Hacking Suite fried by hacking feedback 23974 | -5/Factory | Fabricated Imp. Linear Gravjet? 24237 | -5/Factory | Build established: Machinist-Scout 24304 | -5/Factory | Repaired Imp. Powered Armor? 24323 | -5/Factory | Fabricated Adv. Hacking Suite? 24419 | -5/Factory | Local fabrication network quarantined 24523 | -5/Factory | Discovered new exit (range 8) 24525 | -5/Factory | First assault squad dispatched 24642 | -5/Factory | Build established: Hacker-Sprinter 24647 | -5/Factory | Sucked down chute 24647 | -5/Factory | Entered Waste 24647 | -5/Waste | The area was eerily silent 24653 | -5/Waste | Found Prototype Slashing Weapon 24653 | -5/Waste | Identified Nanosword 24714 | -5/Waste | Discovered new exit (range 14) 24762 | -5/Waste | Identified exit to Factory 24763 | -5/Waste | Entered Factory 24779 | -5/Factory | Discovered new exit (range 12) 24780 | -5/Factory | Discovered exit to Factory (range 14) 24798 | -5/Factory | Discovered new exit (range 13) 24819 | -5/Factory | Identified exit to Upper Caves 24976 | -5/Factory | Repaired Broken Nanosword? 25062 | -5/Factory | Repaired Broken Proton Cannon? 25240 | -5/Factory | Identified exit to Extension 25410 | -5/Factory | Discovered exit to Factory (range 19) 25656 | -5/Factory | Build established: Hacker-Mutant 25970 | -5/Factory | Repaired Fusion Compressor 26060 | -5/Factory | Build established: Hacker-Sprinter 26659 | -5/Factory | Found Exp. Signal Interpreter 26685 | -5/Factory | Discovered exit to Factory (range 9) 26794 | -5/Factory | Build established: Hacker-Mutant 27147 | -5/Factory | Central database locked down 27394 | -5/Factory | Fabricated Imp. Proton Missile Launcher? 27456 | -5/Factory | Local fabrication network quarantined 27463 | -5/Factory | First assault squad dispatched 27475 | -5/Factory | Fabricated Exp. Utility Shielding? 27537 | -5/Factory | Fabricated Combat Drone Bay? 28806 | -5/Factory | Entered Extension 29050 | -5/Extension | Rescued a captive Derelict 29070 | -5/Extension | Rescued A7 29106 | -5/Extension | First assault squad dispatched 29482 | -5/Extension | Spotted B-75 Beast 29500 | -5/Extension | Destroyed B-75 Beast 29503 | -5/Extension | Spotted B-75 Beast 29515 | -5/Extension | Destroyed B-75 Beast 29718 | -5/Extension | Discovered exit to Factory (range 16) 29718 | -5/Extension | Discovered new exit (range 16) 29731 | -5/Extension | Identified exit to Cetus 29766 | -5/Extension | Entered Cetus 29766 | -5/Cetus | Accompanied by 5 allies 29771 | -5/Cetus | Acquired a Cetus Manufacturing Module code from A7 29787 | -5/Cetus | Spotted Cetus Guard 29787 | -5/Cetus | Spotted Cetus Guard 29789 | -5/Cetus | Spotted Cetus Guard 29792 | -5/Cetus | Allies destroyed Cetus Guard 29792 | -5/Cetus | Spotted Cetus Guard 29793 | -5/Cetus | Allies destroyed Cetus Guard 29795 | -5/Cetus | Destroyed Cetus Guard 29798 | -5/Cetus | Allies destroyed Cetus Guard 29893 | -5/Cetus | Started Cetus Manufacturing Module 29914 | -5/Cetus | Escorted A7 to Cetus Mainframe 29918 | -5/Cetus | Manufactured an Enhanced Grunt 29943 | -5/Cetus | Manufactured an Enhanced Grunt 29968 | -5/Cetus | Manufactured an Enhanced Grunt 29993 | -5/Cetus | Manufactured an Enhanced Grunt 30018 | -5/Cetus | Manufactured an Enhanced Grunt 30049 | -5/Cetus | Discovered new exit (range 16) 30056 | -5/Cetus | Build established: Hauler-Mutant 30099 | -5/Cetus | Spotted Cetus Guard 30100 | -5/Cetus | Spotted Cetus Guard 30100 | -5/Cetus | Spotted Cetus Guard 30106 | -5/Cetus | Allies destroyed Cetus Guard 30108 | -5/Cetus | Destroyed Cetus Guard 30112 | -5/Cetus | Destroyed Cetus Guard 30118 | -5/Cetus | Spotted Cetus Guard 30125 | -5/Cetus | Destroyed Cetus Guard 30138 | -5/Cetus | Discovered exit to Factory (range 16) 30147 | -5/Cetus | Met Revision 17 30210 | -5/Cetus | Identified exit to Archives 30211 | -5/Cetus | Entered Archives 30211 | -5/Archives | Accompanied by 6 allies 30216 | -5/Archives | Received a hacking code to weaken MAIN.C 30254 | -5/Archives | Met Zhirov 30259 | -5/Archives | Unable to access archive contents 30260 | -5/Archives | Reinforcements dispatched to Archives 30261 | -5/Archives | Discovered new exit (range 15) 30263 | -5/Archives | Discovered new exit (range 24) 30270 | -5/Archives | Read partially decrypted archive contents 30270 | -5/Archives | Read partially decrypted archive contents 30305 | -5/Archives | Reinforcements dispatched to Archives 30307 | -5/Archives | Zhirov warped through subspace 30321 | -5/Archives | Identified exit to Hub_04(d) 30325 | -5/Archives | Zhirov detonated Archives 30352 | -5/Archives | Discovered exit to Factory (range 27) 30382 | -5/Archives | Entered Hub_04(d) 30382 | -5/Hub_04(d) | Accompanied by 1 ally 30703 | -5/Hub_04(d) | Discovered exit to Factory (range 12) 30711 | -5/Hub_04(d) | Discovered exit to Factory (range 32) 30872 | -5/Hub_04(d) | Discovered exit to Factory (range 14) 30906 | -5/Hub_04(d) | Discovered exit to Factory (range 14) 31082 | -5/Hub_04(d) | Spotted B-75 Beast 31545 | -5/Hub_04(d) | Network Hub disabled 31547 | -5/Hub_04(d) | Disrupted transfer network 31650 | -5/Hub_04(d) | Network Hub disabled 31676 | -5/Hub_04(d) | Spotted Lightning 31680 | -5/Hub_04(d) | Core integrity fell below 50% 31684 | -5/Hub_04(d) | Entered Factory 31684 | -4/Factory | Evolved 2 slots: Propulsion x1, Utility x1 31820 | -4/Factory | Repaired Exp. Utility Shielding 31877 | -4/Factory | Repaired Cmb. Gravmag System? 31932 | -4/Factory | Build established: Hacker-Mutant 31951 | -4/Factory | Repaired Imp. Powered Armor 32041 | -4/Factory | Repaired Cld. Gravmag System? 32434 | -4/Factory | First assault squad dispatched 32806 | -4/Factory | Identified exit to Upper Caves 32806 | -4/Factory | Identified exit to Armory 33380 | -4/Factory | Destroyed 8 combat bots 33546 | -4/Factory | Repaired Exp. Utility Shielding? 33971 | -4/Factory | Repaired Mic. Fission Core 34018 | -4/Factory | Repaired Imp. Linear Gravjet 34554 | -4/Factory | Discovered new exit (range 5) 34555 | -4/Factory | Identified exit to Research 34861 | -4/Factory | Fabricated C-55 Analyst (x1) 34902 | -4/Factory | Fabricated Imp. Linear Gravjet? 35025 | -4/Factory | Fabricated Exp. Sensor Array? 35188 | -4/Factory | Local fabrication network quarantined 35415 | -4/Factory | Sucked down chute 35415 | -4/Factory | Entered Waste 35415 | -4/Waste | The area was eerily silent 35519 | -4/Waste | Discovered new exit (range 11) 35525 | -4/Waste | Identified exit to Factory 35526 | -4/Waste | Entered Factory 35671 | -4/Factory | Spotted B-86 Titan 35751 | -4/Factory | Repaired Mni. Smartbomb Launcher 36084 | -4/Factory | Discovered exit to Research (range 8) 36387 | -4/Factory | Repaired Imp. Powered Armor 36400 | -4/Factory | Repaired Adv. Cloaking Device? 36443 | -4/Factory | Repaired Exp. Utility Shielding? 36698 | -4/Factory | Discovered exit to Research (range 6) 37137 | -4/Factory | Local fabrication network quarantined 37217 | -4/Factory | Fabricated Cmb. Linear Gravjet? 37237 | -4/Factory | Identified exit to Garrison 37266 | -4/Factory | Fabricated EM Dispersion Field? 37316 | -4/Factory | Entered Garrison 37316 | -4/Garrison | Accompanied by 2 allies 37326 | -4/Garrison | Triggered checkpoint 37371 | -4/Garrison | Spotted B-86 Titan 37469 | -4/Garrison | Destroyed B-86 Titan 37492 | -4/Garrison | Triggered checkpoint 37533 | -4/Garrison | Destroyed 8 combat bots 37703 | -4/Garrison | Triggered checkpoint 37710 | -4/Garrison | Garrison Relay disabled 37725 | -4/Garrison | Discovered exit to Research (range 15) 37767 | -4/Garrison | Triggered checkpoint 37795 | -4/Garrison | Discovered exit to Research (range 14) 37829 | -4/Garrison | Triggered checkpoint 37959 | -4/Garrison | Discovered exit to Research (range 15) 37968 | -4/Garrison | Expanded RIF knowledge: Autooverride 38005 | -4/Garrison | Garrison Relay disabled 38266 | -4/Garrison | Entered Research 38266 | -3/Research | Accompanied by 2 allies 38266 | -3/Research | Evolved 2 slots: Utility x2 38532 | -3/Research | Build established: Bothacker-Mutant 38558 | -3/Research | First assault squad dispatched 38686 | -3/Research | Found Prototype Protection 38686 | -3/Research | Identified Centrium Heavy Armor Plating 38729 | -3/Research | Discovered new exit (range 3) 38730 | -3/Research | Identified exit to Research 38906 | -3/Research | Destroyed 7 combat bots 39552 | -3/Research | Discovered new exit (range 9) 39555 | -3/Research | Identified exit to Quarantine 39817 | -3/Research | Found Enh. Force Lance 39963 | -3/Research | Spotted B-86 Titan 40030 | -3/Research | Build established: Hauler-Mutant 40039 | -3/Research | Found Prototype Slashing Weapon 40039 | -3/Research | Identified Centrium Greatsword 40330 | -3/Research | Fabricated Cmb. Linear Gravjet? 40381 | -3/Research | Repaired EM Dispersion Field? 40434 | -3/Research | Repaired Exp. Utility Shielding? 40585 | -3/Research | Repaired Cld. Gravmag System? 40597 | -3/Research | Build established: Hacker-Mutant 41411 | -3/Research | Discovered exit to Research (range 16) 41620 | -3/Research | Found Prototype Processor 41639 | -3/Research | Fabricated Cld. Linear Gravjet? 41789 | -3/Research | Fabricated Cld. Linear Gravjet (x1) 41864 | -3/Research | Fabricated Cld. Linear Gravjet? 41983 | -3/Research | Local fabrication network quarantined 41995 | -3/Research | Fabricated Cld. Linear Gravjet? 42127 | -3/Research | Identified Exp. Target Analyzer 42335 | -3/Research | Entered Quarantine 42404 | -3/Quarantine | Discovered exit to Research (range 5) 42456 | -3/Quarantine | Found Hpw. Transdimensional Reconstructor 42478 | -3/Quarantine | Found Core Stripper 42515 | -3/Quarantine | Repaired Cmb. Linear Gravjet? 42525 | -3/Quarantine | Found Subatomic Replicator 42554 | -3/Quarantine | Repaired Imp. Powered Armor? 42824 | -3/Quarantine | Repaired Cmb. Linear Gravjet? 42843 | -3/Quarantine | Found Phase Redirector 42995 | -3/Quarantine | Found Matter Drive 43196 | -3/Quarantine | Found Sigix Terminator 43319 | -3/Quarantine | Identified exit to Garrison 43319 | -3/Quarantine | Entered Garrison 43401 | -3/Garrison | Spotted B-86 Titan 43422 | -3/Garrison | Destroyed B-86 Titan 43443 | -3/Garrison | Destroyed 10 combat bots 43444 | -3/Garrison | Triggered checkpoint 43599 | -3/Garrison | Discovered exit to Research (range 13) 43605 | -3/Garrison | Expanded RIF knowledge: Autoassimilate 43773 | -3/Garrison | Triggered checkpoint 43812 | -3/Garrison | Garrison Relay disabled 44016 | -3/Garrison | Entered Research 44016 | -2/Research | Evolved 2 slots: Utility x2 44148 | -2/Research | Build established: Bothacker-Mutant 44260 | -2/Research | Identified exit to Testing 44627 | -2/Research | Spotted B-90 Cyclops 44812 | -2/Research | Local fabrication network quarantined 44849 | -2/Research | Fabricated Beam Splitter? 44966 | -2/Research | Discovered new exit (range 7) 45026 | -2/Research | Found Enh. Force Lance 45233 | -2/Research | Repaired Exp. Utility Shielding? 45308 | -2/Research | Repaired Centrium Heavy Armor Plating? 45516 | -2/Research | First assault squad dispatched 46503 | -2/Research | Warped through subspace 46529 | -2/Research | Destroyed 7 combat bots 46565 | -2/Research | Entered Testing 46655 | -2/Testing | Found Hyp. Multirail 46748 | -2/Testing | Found Potential Cannon 46830 | -2/Testing | Repaired Exp. Utility Shielding? 46883 | -2/Testing | Build established: Hauler-Mutant 46899 | -2/Testing | Repaired Cmb. Linear Gravjet 46921 | -2/Testing | Discovered new exit (range 5) 46923 | -2/Testing | Identified exit to Access 47270 | -2/Testing | Repaired Imp. Powered Armor 47298 | -2/Testing | Repaired Imp. Proton Missile Launcher 47399 | -2/Testing | Fabricated Exp. Weapon Shielding (x1) 47422 | -2/Testing | Fabricated Exp. Weapon Cycler (x1) 47437 | -2/Testing | Fabricated Exp. Propulsion Shielding (x1) 47639 | -2/Testing | Fabricated Exp. Utility Shielding (x1) 48049 | -2/Testing | Spotted Fortress 48074 | -2/Testing | Destroyed Fortress 48182 | -2/Testing | Local fabrication network quarantined 48184 | -2/Testing | Found Prototype Reactor 48184 | -2/Testing | Identified Vortex Chain Reactor 48202 | -2/Testing | Found Prototype Device 48202 | -2/Testing | Identified Exp. Force Field 48206 | -2/Testing | Found Prototype Device 48206 | -2/Testing | Identified Thermal Barrier 48251 | -2/Testing | Discovered new exit (range 6) 48253 | -2/Testing | Identified exit to Section 7 48482 | -2/Testing | Entered Section 7 48521 | -2/Section 7 | Found Integrity Redistributor 48712 | -2/Section 7 | Found Integrated Reactor 48712 | -2/Section 7 | Installed Integrated Reactor, increased core energy generation (+2%) 48819 | -2/Section 7 | Found Integrated Dissipator 48819 | -2/Section 7 | Installed Integrated Dissipator, increased core heat dissipation (+2%) 48831 | -2/Section 7 | Discovered exit to Access (range 16) 48918 | -2/Section 7 | Spotted S7 Guard 49028 | -2/Section 7 | Found Integrated Singularity Reactor 49101 | -2/Section 7 | Destroyed S7 Guard 49105 | -2/Section 7 | Found Prototype Protection 49367 | -2/Section 7 | Spotted Alpha 7 49368 | -2/Section 7 | Destroyed Alpha 7 49394 | -2/Section 7 | Found Prototype Ballistic Gun 49394 | -2/Section 7 | Identified Multirail 49399 | -2/Section 7 | Found Prototype Energy Gun 49399 | -2/Section 7 | Identified Enh. Gamma Rifle 49464 | -2/Section 7 | Found Integrated Dissipator 49464 | -2/Section 7 | Installed Integrated Dissipator, increased core heat dissipation (+2%) 49638 | -2/Section 7 | Found Integrated Reactor 49638 | -2/Section 7 | Installed Integrated Reactor, increased core energy generation (+2%) 49656 | -2/Section 7 | Used Subatomic Replicator to replicate Integrated Singularity Reactor 49657 | -2/Section 7 | Installed Integrated Singularity Reactor, increased core energy generation (+2%) 49659 | -2/Section 7 | Installed Integrated Singularity Reactor, increased core energy generation (+2%) 49783 | -2/Section 7 | Found Exp. Targeting Computer 49976 | -2/Section 7 | Found Sigix Quantum Sheargun 50107 | -2/Section 7 | Spotted B-99 Colossus 50133 | -2/Section 7 | Found LRC Energy Well 50133 | -2/Section 7 | Installed LRC Energy Well, increased energy storage capacity (+250) 50139 | -2/Section 7 | Found LRC Storage 50139 | -2/Section 7 | Installed LRC Storage, increased inventory capacity (+2) 50327 | -2/Section 7 | Found Transdimensional Reconstructor 50328 | -2/Section 7 | Found Transdimensional Reconstructor 50471 | -2/Section 7 | Found Sigix Quantum Sheargun 50474 | -2/Section 7 | Identified Hvy. Regenerative Plating 50480 | -2/Section 7 | Found Sigix Quantum Sheargun 50679 | -2/Section 7 | Found Matter Drive 50982 | -2/Section 7 | Identified exit to Garrison 50982 | -2/Section 7 | Entered Garrison 51057 | -2/Garrison | Spotted B-90 Cyclops 51155 | -2/Garrison | Destroyed B-90 Cyclops 51185 | -2/Garrison | Triggered checkpoint 51200 | -2/Garrison | Triggered checkpoint 51285 | -2/Garrison | Build established: Hacker-Mutant 51287 | -2/Garrison | Discovered exit to Access (range 12) 51417 | -2/Garrison | Discovered exit to Access (range 12) 51423 | -2/Garrison | Expanded RIF knowledge: Structural Interface 51573 | -2/Garrison | Garrison Relay disabled 51674 | -2/Garrison | Triggered checkpoint 51677 | -2/Garrison | Garrison Relay disabled 51700 | -2/Garrison | Entered Access 51700 | -1/Access | Evolved 2 slots: Utility x1, Weapon x1 51790 | -1/Access | Build established: Hauler-Mutant 51918 | -1/Access | Discovered new exit (range 12) 51918 | -1/Access | Central database locked down 51951 | -1/Access | Identified exit to Command 52329 | -1/Access | Fabricated Exp. Terrain Scanner (x1) 52379 | -1/Access | Fabricated Exp. Terrain Scan Processor (x1) 52496 | -1/Access | Found Prototype Device 52543 | -1/Access | Repaired Exp. Utility Shielding? 52596 | -1/Access | Repaired Exp. Utility Shielding 52622 | -1/Access | Repaired Cmb. Linear Gravjet? 52697 | -1/Access | Local fabrication network quarantined 52700 | -1/Access | First assault squad dispatched 52771 | -1/Access | Build established: Hauler-Ninja 52840 | -1/Access | Identified Exp. Shock Absorption System 52870 | -1/Access | Repaired Exp. Weapon Shielding 52909 | -1/Access | Repaired Cmb. Linear Gravjet? 52942 | -1/Access | P-80 Master assimilated allied Director 10b 55110 | -1/Access | Repaired Exp. Cooling System? 55632 | -1/Access | Entered Command 55712 | -1/Command | Build established: Hauler-Mutant 55824 | -1/Command | Phase Generator disabled 56036 | -1/Command | Spotted Alpha 7 56041 | -1/Command | Spotted Striker 56053 | -1/Command | Spotted Executioner 56054 | -1/Command | Destroyed Striker 56055 | -1/Command | Destroyed Executioner 56100 | -1/Command | Destroyed Alpha 7 56179 | -1/Command | First assault squad dispatched 56881 | -1/Command | Spotted Combat Programmer 56882 | -1/Command | Destroyed Combat Programmer 56882 | -1/Command | Spotted Combat Programmer 56890 | -1/Command | Destroyed Combat Programmer 56898 | -1/Command | Found Prototype Device 56899 | -1/Command | Identified Exp. Focal Shield 56905 | -1/Command | Found Prototype Energy Cannon 56906 | -1/Command | Identified EMDS 57025 | -1/Command | Spotted M Guard 57090 | -1/Command | Destroyed M Guard 57098 | -1/Command | Found Prototype Device 57100 | -1/Command | Identified AEGIS Remote Shield 57149 | -1/Command | Found Prototype Reactor 57228 | -1/Command | Identified Zero-point Reactor 57315 | -1/Command | Spotted M Guard 57318 | -1/Command | Destroyed M Guard 57318 | -1/Command | Destroyed all MAIN.C guards 57357 | -1/Command | Found AEGIS Remote Shield 57364 | -1/Command | Found Zero-point Reactor 57482 | -1/Command | Found Gamma Bomb Array 57749 | -1/Command | Build established: Machinist-Mutant 57842 | -1/Command | Spotted B-99 Colossus 58349 | -1/Command | Build established: Hauler-Mutant 59013 | -1/Command | Met MAIN.C 59041 | -1/Command | Hacked MAIN.C using A7's code 59057 | -1/Command | 0b10 Conduit disabled 59060 | -1/Command | Destroyed MAIN.C Shell 59063 | -1/Command | MAIN.C activated Command garrisons 59121 | -1/Command | Destroyed MAIN.C 59158 | -1/Command | Build established: Scavenger-Gunner 59204 | -1/Command | Found Prototype Ballistic Cannon 59206 | -1/Command | Identified Omega Cannon 59302 | -1/Command | Spotted B-99 Colossus 59357 | -1/Command | Discovered new exit (range 11) 59390 | -1/Command | Destroyed 9 combat bots 59472 | -1/Command | Build established: Hauler-Mutant 59510 | -1/Command | Crushed by falling debris 59589 | -1/Command | Destroyed 8 combat bots 59727 | -1/Command | Found Exp. Targeting Computer 59743 | -1/Command | Found Prototype Protection 59744 | -1/Command | Identified Exp. Powered Armor 59746 | -1/Command | Found Exp. Powered Armor 60023 | -1/Command | Destroyed B-99 Colossus 60028 | -1/Command | Build established: Scavenger-Mutant 60225 | -1/Command | Discovered new exit (range 8) 60226 | -1/Command | Found Prototype Processor 60226 | -1/Command | Identified Exp. Core Analyzer 60274 | -1/Command | Found Prototype Energy Cannon 60274 | -1/Command | Identified Cld. Nova Cannon 60285 | -1/Command | Found Hvy. Regenerative Plating 60357 | -1/Command | Build established: Hauler-Mutant 60686 | -1/Command | Build established: Scavenger-Tank 60766 | -1/Command | Warped through subspace to slip node 60766 | -1/Command | Discovered new exit (range 4) 60774 | -1/Command | Entered Access_0 60777 | -1/Access_0 | Met Architect 60828 | -1/Access_0 | Architect warped through subspace 60841 | -1/Access_0 | Found Prototype Device 60842 | -1/Access_0 | Identified Exp. Phase Shifter 60849 | -1/Access_0 | Found Exp. Targeting Computer 60894 | -1/Access_0 | Architect warped through subspace 60902 | -1/Access_0 | Found Alien Energy Gun 60902 | -1/Access_0 | Identified Modified Quantum Sheargun 60907 | -1/Access_0 | Subspace Access Node disabled 60911 | -1/Access_0 | Found Zero-point Reactor 60927 | -1/Access_0 | Architect warped through subspace 60962 | -1/Access_0 | Destroyed A8 60968 | -1/Access_0 | Architect warped through subspace 61008 | -1/Access_0 | Architect warped through subspace 61015 | -1/Access_0 | Destroyed 9 combat bots 61030 | -1/Access_0 | Architect warped through subspace 61060 | -1/Access_0 | Architect warped through subspace 61062 | -1/Access_0 | Subspace Access Node disabled 61088 | -1/Access_0 | Architect warped through subspace 61123 | -1/Access_0 | Architect warped through subspace 61130 | -1/Access_0 | Used Integrity Redistributor, redistributed integrity from core (-227) 61131 | -1/Access_0 | Core integrity fell below 50% 61137 | -1/Access_0 | Found Modified Quantum Sheargun 61155 | -1/Access_0 | Architect warped through subspace 61165 | -1/Access_0 | Found Modified Quantum Sheargun 61181 | -1/Access_0 | Architect warped through subspace 61189 | -1/Access_0 | Found Prototype Protection 61189 | -1/Access_0 | Identified Centrium Linked Plating 61203 | -1/Access_0 | Architect warped through subspace 61226 | -1/Access_0 | Architect warped through subspace 61255 | -1/Access_0 | Architect warped through subspace 61267 | -1/Access_0 | Subspace Access Node disabled 61268 | -1/Access_0 | A6 warped into view 61322 | -1/Access_0 | Destroyed A6 61322 | -1/Access_0 | Core integrity fell below 20% 61328 | -1/Access_0 | Architect warped through subspace 61376 | -1/Access_0 | Architect warped through subspace 61378 | -1/Access_0 | Found Zero-point Reactor 61433 | -1/Access_0 | Subspace Access Node disabled 61474 | -1/Access_0 | Destroyed Architect 61475 | -1/Access_0 | Architect triggered a singularity event 61479 | -1/Access_0 | Found Prototype Hackware 61479 | -1/Access_0 | Identified Architect God Chip D 61481 | -1/Access_0 | Warped through subspace to slip node 61481 | -1/Access_0 | Discovered new exit (range 8) 61485 | *** | Escaped singularity! Last Messages --------------- 61478_ Penetrated by HV Slug. 61478_ Critical hit. 61478_ Knocked back. 61478_ Penetrated by HV Slug. 61478_ Critical hit. 61479_ A0_COM: 7. 61479_ The unstable cave ceiling collapses. 61479_ Enhanced Hunter crushed by falling debris. 61479_ Penetrated by HV Slug. 61479_ Acquired Prototype Hackware. 61479_ Identified Architect God Chip D. 61480_ A0_COM: 6. 61480_ HV Slug penetrates Wall. 61481_ A0_COM: 5. 61481_ Warped through subspace, drawn to slip node. 61481_ EXIT=FOUND 61482_ A0_COM: 4. 61483_ A0_COM: 3. 61484_ A0_COM: 2. 61485_ A0_COM: 1. Map ----- +----------------------------------------------------+ | | | | | | | | | | | | | | | | | | | | | | | | | | | | | | | | | ?????????????????????????????????????????????????? | | ?????????????????????????????????????????????????? | | ?????????????????????????????????????????????????? | | ?????????????????????????????????????????????????? | | ?????????????????????????????????????????????????? | | ?????????????????????????????????????????????????? | | ????????????????????????###??????????????????????? | | ???????????????????????## ##?????????????????????? | | ???????????????????????# #?????????????????????? | | ???????????????????????# @ #?????????????????????? | | ??????????????????????## #?????????????????????? | | ??????????????????????# #?????????????????????? | | ??????????????????????# ##?????????????????????? | | ??????????????????????## #?????????????????????? | | ??????????????????????# #?????????????????????? | | ??????????????????????# ##?????????????????????? | | ??????????????????????# < #?????????????????????? | | ??????????????????????# ##?????????????????????? | | ??????????????????????## #??????????????????????? | | ???????????????????????####??????????????????????? | | ?????????????????????????????????????????????????? | | ?????????????????????????????????????????????????? | | ?????????????????????????????????????????????????? | | ?????????????????????????????????????????????????? | | ?????????????????????????????????????????????????? | | ?????????????????????????????????????????????????? | | ?????????????????????????????????????????????????? | | ?????????????????????????????????????????????????? | | ?????????????????????????????????????????????????? | | ?????????????????????????????????????????????????? | | ?????????????????????????????????????????????????? | | ?????????????????????????????????????????????????? | | ?????????????????????????????????????????????????? | | ?????????????????????????????????????????????????? | +----------------------------------------------------+ Best States ------------- Heat Dissipation 168 Coolant Potential 120 Energy Generation 121 Energy Capacity 1240 Matter Stores 478 Matter Capacity 800 Sight Range 22 Robot Scan Range 30 Terrain Scan Range 30 Terrain Scan Density 1010 Jamming Range 16 Cloak Strength 4 Additional Mass Support 25 EM Shielding 3 Armor Coverage 1100 Resistance: KI 30 Resistance: TH 75 Resistance: EX 75 Resistance: EM 75 Core Shielding 40 Propulsion Shielding 90 Utility Shielding 90 Weapon Shielding 90 Weapon Cycling 30 Melee Speed Boost 30 Phase Shifting 20 Evasion (%) 90 Targeting Accuracy 36 Armor Integrity Analysis 66 Recoil Reduction 3 Particle Charging 30 Offensive Hacking 56 Defensive Hacking 100 Item Schematics ----------------- Lrg. Storage Unit | -9/Materials | Hacked Hcp. Storage Unit | -9/Materials | Hacked Enh. Autogun | -8/Materials | Scanalyzed Mic. Fission Core | -7/Factory | Hacked Adv. Hacking Suite | -7/Factory | Hacked Imp. Sensor Array | -7/Factory | Extracted Imp. Carbon-fiber Leg | -7/Factory | Extracted Mic. Nuclear Core | -7/Factory | Extracted Spread Laser | -7/Factory | Extracted Hpw. Tractor Beam | -7/Factory | Extracted Lrn. Proton Cannon | -7/Factory | Hacked Imp. Cesium-ion Thruster | -7/Factory | Scanalyzed Imp. Linear Gravjet | -6/Factory | Hacked Exp. Sensor Array | -6/Factory | Hacked Cloaking Device | -6/Factory | Hacked Exp. Signal Interpreter | -6/Factory | Scanalyzed Mni. Smartbomb Launcher | -6/Factory | Hacked Imp. Proton Missile Launcher | -6/Factory | Hacked System Restoration Module | -6/Factory | Hacked Imp. Powered Armor | -6/Factory | Hacked Adv. Particle Charger | -6/Factory | Hacked Exp. Utility Shielding | -6/Factory | Hacked Combat Drone Bay | -6/Data Miner | Free Lgt. Regenerative Plating | -6/Data Miner | Free Exp. Flexi-carbon Leg | -6/Data Miner | Free Exp. Cesium-ion Thruster | -6/Data Miner | Free Tactical Coordination Suite | -6/Data Miner | Free Adv. Weapon Cycler | -5/Factory | Hacked Cld. Gravmag System | -5/Factory | Scanalyzed Imp. Cloaking Device | -5/Factory | Hacked EM Shield | -5/Factory | Hacked Cmb. Linear Gravjet | -4/Factory | Scanalyzed EM Dispersion Field | -4/Factory | Hacked Plasma Lance | -4/Factory | Hacked Cld. Linear Gravjet | -3/Research | Hacked Adv. Variable Charge Gun | -3/Research | Extracted Beam Splitter | -3/Research | Hacked Hellfire Missile Launcher | -3/Quarantine | Reported Exp. Thermal Shield | -3/Quarantine | Reported Prc. Energy Filter | -3/Quarantine | Reported Centrium Medium Armor Plating | -3/Quarantine | Reported Coolant Network | -3/Quarantine | Reported Exp. Field Recycling Unit | -3/Quarantine | Reported Tactical Quantum Warhead | -3/Quarantine | Reported Com. Particle Reactor | -3/Quarantine | Reported Cld. Antigrav System | -3/Quarantine | Reported Lrn. Phase Cannon | -3/Quarantine | Reported Hdn. Centrium Wheel | -3/Quarantine | Reported Exp. Heat Sink | -3/Quarantine | Reported Adv. Matter Compressor | -3/Quarantine | Reported Imp. Antigrav System | -3/Quarantine | Reported Com. Mass Driver | -3/Quarantine | Reported Energy Mantle | -3/Quarantine | Reported Molecular Scythe | -3/Quarantine | Reported Arm. Medium Treads | -3/Quarantine | Reported Adv. Hardlight Generator | -3/Quarantine | Reported Hvy. Antimatter Reactor | -3/Quarantine | Reported Exp. Weapon Shielding | -3/Quarantine | Hacked Exp. Propulsion Shielding | -3/Quarantine | Hacked Exp. ECM Suite | -3/Quarantine | Hacked Exp. Terrain Scanner | -3/Quarantine | Hacked Exp. Terrain Scan Processor | -3/Quarantine | Hacked Centrium Heavy Armor Plating | -2/Research | Scanalyzed Exp. Weapon Cycler | -2/Testing | Hacked Robot Schematics ------------------ S-27 Virus | -6/Data Miner | Free G-50 Soldier | -6/Data Miner | Free X-72 Disruptor | -6/Data Miner | Free G-67 Veteran | -6/Data Miner | Free H-66 Slayer | -6/Data Miner | Free I-36 Angel | -6/Data Miner | Free I-47 Archangel | -6/Data Miner | Free C-55 Analyst | -4/Factory | Hacked Fabricated ------------ Mic. Fission Core | x2 | -7/Factory Adv. Hacking Suite | x1 | -7/Factory Adv. Hacking Suite | x1 | -7/Factory Adv. Hacking Suite | x1 | -7/Factory Adv. Hacking Suite | x1 | -7/Factory Adv. Hacking Suite | x1 | -7/Factory Adv. Hacking Suite | x1 | -7/Factory Exp. Sensor Array | x1 | -6/Factory Lrg. Storage Unit | x1 | -6/Factory Imp. Linear Gravjet | x2 | -6/Factory Mni. Smartbomb Launcher | x1 | -6/Factory System Restoration Module | x2 | -6/Factory Exp. Utility Shielding | x1 | -6/Factory Imp. Linear Gravjet | x2 | -6/Factory Imp. Linear Gravjet | x2 | -5/Factory Adv. Hacking Suite | x1 | -5/Factory Adv. Hacking Suite | x1 | -5/Factory Imp. Linear Gravjet | x2 | -5/Factory Adv. Hacking Suite | x1 | -5/Factory Imp. Proton Missile Launcher | x1 | -5/Factory Exp. Utility Shielding | x1 | -5/Factory Combat Drone Bay | x1 | -5/Factory C-55 Analyst | x1 | -4/Factory Imp. Linear Gravjet | x2 | -4/Factory Exp. Sensor Array | x1 | -4/Factory Cmb. Linear Gravjet | x2 | -4/Factory EM Dispersion Field | x1 | -4/Factory Cmb. Linear Gravjet | x2 | -3/Research Cld. Linear Gravjet | x1 | -3/Research Cld. Linear Gravjet | x1 | -3/Research Cld. Linear Gravjet | x1 | -3/Research Cld. Linear Gravjet | x1 | -3/Research Beam Splitter | x1 | -2/Research Exp. Weapon Shielding | x1 | -2/Testing Exp. Weapon Cycler | x1 | -2/Testing Exp. Propulsion Shielding | x1 | -2/Testing Exp. Utility Shielding | x1 | -2/Testing Exp. Terrain Scanner | x1 | -1/Access Exp. Terrain Scan Processor | x1 | -1/Access Alien Tech Used ----------------- Core Expander Phase Redirector High-powered Transdimensional Reconstructor Core Stripper Integrated Reactor Integrated Dissipator Subatomic Replicator Integrated Singularity Reactor LRC Energy Well LRC Storage Sigix Quantum Sheargun Matter Drive Transdimensional Reconstructor Modified Quantum Sheargun Integrity Redistributor Achievements -------------- Poison In The Code Challenges ------------ None Game ------ Seed DecoderOpticalTreads Manual? 0 Play Time 23:12:43 Cumulative 987.0 hours Start 2020.03.08 @ 17:52:36 End 2020.03.15 @ 19:23:44 Sessions 13 Manual Loads 0 Difficulty Rogue Special Mode None Game No. 359 Rogue 359 Adventurer 0 Explorer 0 Win Type 6 Total 24 Types 13/1/7/0/0/0/3 Lore% 96 Gallery% 97 Achievement% 83 Wizard Run 0 Options --------- ASCII 0 Keyboard 0 Movement Vi Keybinds 0 Fullscreen 0 Font 12/Crisp Map View 76x50 Tactical HUD 1 Map Filters NONE Filters NONE Steam 1 RUN: 74d4dfef-2b80-4c8c-9067-7b83e2819f53